{"text_format":"1","workbook":"xlsx","n_sheets":53,"sheets":["1","2","3","4","5","6","7","8","9","10","11","12","13","14","15","16","17","18","19","20","21","22","23","24","25","26","27","28","29","30","31","32","33","34","35","36","37","38","39","40","41","42","43","44","45","46","47","48","49","50","51","52","53"],"not_rendered":{"charts":0,"images":0,"macros":1,"external_links":0,"defined_names":11,"comments":0,"pivot_tables":0},"unopened":[],"bounds":{"document_bytes":16777216,"sheet_cells":100000,"rows_first":2000,"rows_last":500,"rows_between":2000,"halvings":0,"cell_chars":16384,"cell_head_chars":4096},"cells_cut":0,"cells_raw":0,"read":"whole","date_system":"1900"}

{"sheet":"1","index":0,"n_rows":58,"n_cols":19,"rows_kept":58,"cut":false,"hidden":false,"merged":[]}
["LOCK",{"$f":"\"Kasboek\"&CHOOSE(M1+1,\"\",\" (Proefversie)\",\" Verlopen!\",\"\")","v":"Kasboek"},"Weeknr: ",1,"Jaar :  ",{"$f":"jaar","v":0},"Winkel :",{"$f":"naam","v":0},null,null,"invullen:",null,{"$f":"IF(Licentiedatum=\"\",3,IF(AND(Licentiedatum<>\"\",Licentie,licentiecode=\"\"),1,IF(Licentie,0,2)))","v":3},null,null,{"$f":"IF(MID(naam,ROW(),1)=\"\",0,MID(naam,ROW(),1))","v":0},"J",{"$f":"VALUE(TEXT(CODE(P1),\"000\")&TEXT(CODE(Q1),\"000\"))*16*16","v":12306944}]
[null,null,null,null,null,null,null,null,null,null,null,"Jaar",null,"datum in gebruik",null,0,"&",{"$f":"VALUE(TEXT(CODE(P2),\"000\")&TEXT(CODE(Q2),\"000\"))*16*16","v":12297728}]
["Datum:","Omschrijving",null,null,null,null,null,"Uitgaven","Inkomsten",null,null,"Naam",null,"code",null,0,"S",12309248]
[null,null,null,null,null,null,null,null,null,null,{"$f":"IF(jaar=\"\",YEAR(NOW()),jaar)","v":2014},"Jaar voor userform",{"$f":"IF(M3=R51,TRUE,IF(M2+31<NOW(),FALSE,TRUE))","v":false},"Gebruik",null,0,"A",12304640]
[null,null,null,null,"Verkopen","Overige","Omschrij-","Beginsaldo",null,null,"week begint op maandag",null,null,null,null,0,"d",12313600]
[null,null,"Kassa 1","Kassa 2","op rekening","inkomsten","ving",null,null,null,{"$f":"K7-1","v":-3},{"$f":"WEEKDAY(K6,2)","v":{"$error":"#NUM!"}},{"$f":"IF(L7>L6,0,1+SUM(INDIRECT(\"M5:M\"&ROW()-1)))","v":{"$error":"#NUM!"}},false,{"$f":"M6","v":{"$error":"#NUM!"}},0,"m",12315904]
[{"$f":"IF(jr,\"\",INDEX(K:K,N7,1))","v":""},"Omzet maandag",null,null,null,null,null,null,null,null,-2,{"$error":"#NUM!"},{"$f":"IF(L8>L7,0,1+SUM(INDIRECT(\"M5:M\"&ROW()-1)))","v":{"$error":"#NUM!"}},{"$f":"MATCH(1,O:O,0)+1","v":{"$error":"#N/A"}},{"$f":"M7","v":{"$error":"#NUM!"}},0,"i",12314880]
[{"$f":"IF(jr,\"\",A7+1)","v":""},"Omzet dinsdag",null,null,null,null,null,null,null,null,-1,{"$error":"#NUM!"},{"$error":"#NUM!"},{"$f":"MATCH(2,M:M,0)","v":{"$error":"#N/A"}},{"$error":"#NUM!"},0,"n",12316160]
["","Omzet woensdag",null,null,null,null,null,null,null,null,"00:00:00",6,0,"53 weken:",0,0,"i",12314880]
["","Omzet donderdag",null,null,null,null,null,null,null,null,"1900-01-01",7,{"$error":"#NUM!"},{"$f":"IF(OR(N16,AND(N12,N14)),TRUE,FALSE)","v":{"$error":"#VALUE!"}},{"$error":"#NUM!"},0,"s",12317440]
["","Omzet vrijdag",null,null,null,null,null,null,null,null,"1900-01-02",1,0,"schrikkeljaar",0,0,"t",12317696]
["","Omzet zaterdag",null,null,null,null,null,null,null,null,"1900-01-03",2,0,{"$f":"IF(MOD(jaar,4)=0,TRUE,FALSE)","v":true},0,0,"r",12317184]
["","Omzet zondag",null,null,null,null,null,null,null,null,{"$f":"DATE(F1,1,4)","v":"1900-01-04"},{"$f":"WEEKDAY(K13,2)","v":3},0,"Woensdag",0,0,"a",12312832]
[null,"Weektotaal",{"$f":"SUM(C7:C13)","v":0},{"$f":"SUM(D7:D13)","v":0},{"$f":"SUM(E7:E13)","v":0},{"$f":"SUM(F7:F13)","v":0},{"$f":"SUM(G7:G13)","v":0},null,{"$f":"IF(Licentie,SUM(C14:G14),0)","v":0},null,{"$f":"K13+1","v":"1900-01-05"},4,0,{"$f":"IF(DAY(A9)=1,TRUE,FALSE)","v":{"$error":"#VALUE!"}},0,0,"t",12317696]
[null,null,null,null,null,null,null,null,null,null,"1900-01-06",5,0,"Donderdag",0,0,"i",12314880]
[null,null,"Pin","Pin","Chip","Eurocard","Visa e.a.",null,null,null,"1900-01-07",6,0,{"$f":"IF(DAY(A10)=1,TRUE,FALSE)","v":{"$error":"#VALUE!"}},0,0,"e",12313856]
[{"$f":"A7","v":""},"Maandag",null,null,null,null,null,null,null,null,"1900-01-08",7,{"$error":"#NUM!"},"saldo eindejaar",{"$error":"#NUM!"},0,"s",12317440]
[{"$f":"A8","v":""},"Dinsdag",null,null,null,null,null,null,null,null,"1900-01-09",1,0,{"$f":"'53'!I56","v":0},0,{"$f":"IF(MID(naam,ROW(),1)=\"\",0,MID(naam,ROW(),1))","v":0},"e",12313856]
["","Woensdag",null,null,null,null,null,null,null,null,"1900-01-10",2,0,{"$f":"IF(jaar=\"\",TRUE,FALSE)","v":true},0,{"$f":"IF(MID(naam,ROW(),1)=\"\",0,MID(naam,ROW(),1))","v":0},"n",12316160]
["","Donderdag",null,null,null,null,null,null,null,null,null,8,null,null,null,0,"B",12304896]
["","Vrijdag",null,null,null,null,null,null,null,null,null,null,null,null,null,0,"e",12313856]
["","Zaterdag",null,null,null,null,null,null,null,null,"Het weeknummer",null,null,null,null,0,"l",12315648]
["","Zondag",null,null,null,null,null,null,null,null,null,null,null,null,null,0,"a",12312832]
[null,"Weektotaal",{"$f":"SUM(C17:C23)","v":0},{"$f":"SUM(D17:D23)","v":0},{"$f":"SUM(E17:E23)","v":0},{"$f":"SUM(F17:F23)","v":0},{"$f":"SUM(G17:G23)","v":0},{"$f":"IF(Licentie,SUM(C24:G24),0)","v":0},null,null,"Er werd internationaal (bepaald ISO) de weken in het jaar te nummeren. Daarbij hoort een week bij het jaar waarin de meeste van haar dagen valt. De maandag wordt daarbij gedefinieerd als de eerste dag van de week. Dat betekent dat de eerste week van het jaar de week is die 4 januari bevat, wat heztelfde is als de week die de eerste donderdag van januari bevat.",null,null,null,null,0,"s",12317440]
[null,null,null,null,null,null,null,null,null,null,null,null,null,null,null,0,"t",12317696]
[null,"Kadobonnen ingewisseld","( aangeslagen op kassa, goederen verlaten winkel)",null,null,null,null,null,null,null,"Meestal heeft een jaar 52 weken. Een jaar dat op donderdag begint (of een schrikkeljaar dat op woensdag of donderdag begint) heeft 53 weken.",null,null,null,null,0,"i",12314880]
[null,"Kadobonnen verkocht","(wordt niet aangeslagen op kassa)",null,null,null,null,null,null,null,null,null,null,null,null,0,"n",12316160]
[null,null,null,null,null,null,null,null,null,null,"Voor een gegeven datum kan het weeknummer (ISO) berekend worden. ",null,null,null,null,0,"g",12314368]
[null,"Bankstorting ","contant geld",null,null,null,null,null,null,null,null,null,null,null,null,0,"e",12313856]
[null,"Bankstorting ","contant geld",null,null,null,null,null,null,null,"De eerste week van het jaar is de week die de 4de januari bevat. In dat geval bevat die eerste week meer dagen van het nieuwe jaar dan van het oude, en valt 1 januari dus op een maandag, dinsdag, woensdag of donderdag.",null,null,null,null,0,"n",12316160]
[null,"Bankstorting ","contant geld",null,null,null,null,null,null,null,"Bepaal dan het JD-nummer van de zondag die samenvalt met of volgt op 4 jan : JD0",null,null,null,null,0,"G",12306176]
[null,"Van bank opgenomen",null,null,null,null,null,null,null,null,"Bereken het JD-nummer van de gegeven datum : JD",null,null,null,null,0,"e",12313856]
[null,null,null,null,null,null,null,null,null,null,"Het weeknummer voor de gegeven datum is dan",null,null,null,null,0,"n",12316160]
["2006-01-01","Overige uitgaven:","Omschrijving:","Aan wie:","Bedrag:",null,null,null,null,null,null,null,null,null,null,0,"d",12313600]
[null,null,null,null,null,null,null,null,null,null,"int((JD - JD0)/7) + 1",null,null,null,null,0,"r",12317184]
[null,null,null,null,null,null,null,null,null,null,null,null,null,null,null,0,"i",12314880]
[null,null,null,null,null,null,null,null,null,null,"Melding:",null,null,null,null,0,"n",12316160]
[null,null,null,null,null,null,null,null,null,null,"LET OP! Volgend Jaar gekozen!\nDit sheet wordt opgeslagen en alle gegevens worden gewist.\nEr wordt een nieuw sheet opgeslagen met de volgende naam:\n",null,null,null,null,0,"g",12314368]
[null,null,null,null,null,null,null,null,null,null,{"$f":"\"Kasformulier-\"&jaar+1","v":"Kasformulier-1"},null,null,null,null,0,"e",12313856]
[null,null,null,null,null,null,null,null,null,null,"\nWeet u zeker dat u dit jaar wilt afsluiten en een nieuw kasformulier wilt aanmaken? ",null,null,null,null,0,"n",12316160]
[null,null,null,null,null,null,null,null,null,null,null,null,null,null,null,0,"J",12306944]
[null,null,null,null,null,null,null,null,null,null,null,null,null,null,null,0,"&",12297728]
[null,null,null,null,null,null,null,null,null,null,null,null,null,null,null,0,"S",12309248]
[null,null,null,null,null,null,null,null,null,null,null,null,null,null,null,0,"A",12304640]
[null,null,null,null,null,null,null,null,null,null,null,null,null,null,null,0,"d",12313600]
[null,null,null,null,null,null,null,null,null,null,null,null,null,null,null,0,"m",12315904]
[null,null,null,null,null,null,null,null,null,null,null,null,null,null,null,0,"i",12314880]
[null,"Prive opname",null,null,null,null,null,null,null,null,null,null,null,null,null,0,"n",12316160]
[null,"Totaal uitgaven",null,null,{"$f":"SUM(E35:E48)","v":0},null,null,{"$f":"SUM(E49)","v":0},null,null,null,null,null,null,null,0,"i",12314880]
[null,null,null,null,null,null,null,null,null,null,null,null,null,null,null,0,"s",12317440,{"$f":"SUM(R1:R50)","v":615664640}]
[null,null,null,null,null,null,"kasverschillen",null,null,null,null,null,null,null,null,null,null,{"$f":"VALUE(RIGHT(S50,8))","v":15664640}]
[]
[null,"Geteld kasgeld hier vermelden:",null,null,null,null,"Tellingen",{"$f":"IF(Licentie,SUM(H5:H52),0)","v":0},{"$f":"IF(Licentie,SUM(I5:I52),0)","v":0}]
[]
[]
[null,null,null,null,null,"Kassaldo","einde week:",null,{"$f":"SUM(I53-H53)","v":0}]
[]
[null,"Bijzonderheden:"]

{"sheet":"2","index":1,"n_rows":58,"n_cols":9,"rows_kept":58,"cut":false,"hidden":false,"merged":[]}
[null,{"$f":"KbTxt","v":"Kasboek"},"Weeknr: ",2,"Jaar :  ",{"$f":"jaar","v":0},"Winkel :",{"$f":"naam","v":0}]
[]
["Datum:","Omschrijving",null,null,null,null,null,"Uitgaven","Inkomsten"]
[]
[null,null,null,null,"Verkopen","Overige","Omschrij-","Beginsaldo",{"$f":"IF(Licentie,INDIRECT(\"'\"&D1-1&\"'!I56\"),0)","v":0}]
[null,null,"Kassa 1","Kassa 2","op rekening","inkomsten","ving"]
[{"$f":"IF(jr,\"\",INDIRECT(\"'\"&D1-1&\"'!A13\")+1)","v":""},"Omzet maandag"]
[{"$f":"IF(jr,\"\",A7+1)","v":""},"Omzet dinsdag"]
["","Omzet woensdag"]
["","Omzet donderdag"]
["","Omzet vrijdag"]
["","Omzet zaterdag"]
["","Omzet zondag"]
[null,"Weektotaal",{"$f":"SUM(C7:C13)","v":0},{"$f":"SUM(D7:D13)","v":0},{"$f":"SUM(E7:E13)","v":0},{"$f":"SUM(F7:F13)","v":0},{"$f":"SUM(G7:G13)","v":0},null,{"$f":"IF(Licentie,SUM(C14:G14),0)","v":0}]
[]
[null,null,"Pin","Pin","Chip","Eurocard","Visa e.a."]
[{"$f":"A7","v":""},"Maandag"]
[{"$f":"A8","v":""},"Dinsdag"]
["","Woensdag"]
["","Donderdag"]
["","Vrijdag"]
["","Zaterdag"]
["","Zondag"]
[null,"Weektotaal",{"$f":"SUM(C17:C23)","v":0},{"$f":"SUM(D17:D23)","v":0},{"$f":"SUM(E17:E23)","v":0},{"$f":"SUM(F17:F23)","v":0},{"$f":"SUM(G17:G23)","v":0},{"$f":"IF(Licentie,SUM(C24:G24),0)","v":0}]
[]
[null,"Kadobonnen ingewisseld","( aangeslagen op kassa, goederen verlaten winkel)"]
[null,"Kadobonnen verkocht","(wordt niet aangeslagen op kassa)"]
[]
[null,"Bankstorting ","contant geld"]
[null,"Bankstorting ","contant geld"]
[null,"Bankstorting ","contant geld"]
[null,"Van bank opgenomen"]
[]
[null,"Overige uitgaven:","Omschrijving:","Aan wie:","Bedrag:"]
[]
[]
[]
[]
[]
[]
[]
[]
[]
[]
[]
[]
[]
[null,"Prive opname"]
[null,"Totaal uitgaven",null,null,{"$f":"SUM(E35:E48)","v":0},null,null,{"$f":"SUM(E49)","v":0}]
[]
[null,null,null,null,null,null,"kasverschillen"]
[]
[null,"Geteld kasgeld hier vermelden:",null,null,null,null,"Tellingen",{"$f":"IF(Licentie,SUM(H5:H52),0)","v":0},{"$f":"IF(Licentie,SUM(I5:I52),0)","v":0}]
[]
[]
[null,null,null,null,null,"Kassaldo","einde week:",null,{"$f":"SUM(I53-H53)","v":0}]
[]
[null,"Bijzonderheden:"]

{"sheet":"3","index":2,"n_rows":58,"n_cols":9,"rows_kept":58,"cut":false,"hidden":false,"merged":[]}
[null,{"$f":"KbTxt","v":"Kasboek"},"Weeknr: ",3,"Jaar :  ",{"$f":"jaar","v":0},"Winkel :",{"$f":"naam","v":0}]
[]
["Datum:","Omschrijving",null,null,null,null,null,"Uitgaven","Inkomsten"]
[]
[null,null,null,null,"Verkopen","Overige","Omschrij-","Beginsaldo",{"$f":"IF(Licentie,INDIRECT(\"'\"&D1-1&\"'!I56\"),0)","v":0}]
[null,null,"Kassa 1","Kassa 2","op rekening","inkomsten","ving"]
[{"$f":"IF(jr,\"\",INDIRECT(\"'\"&D1-1&\"'!A13\")+1)","v":""},"Omzet maandag"]
[{"$f":"IF(jr,\"\",A7+1)","v":""},"Omzet dinsdag"]
["","Omzet woensdag"]
["","Omzet donderdag"]
["","Omzet vrijdag"]
["","Omzet zaterdag"]
["","Omzet zondag"]
[null,"Weektotaal",{"$f":"SUM(C7:C13)","v":0},{"$f":"SUM(D7:D13)","v":0},{"$f":"SUM(E7:E13)","v":0},{"$f":"SUM(F7:F13)","v":0},{"$f":"SUM(G7:G13)","v":0},null,{"$f":"IF(Licentie,SUM(C14:G14),0)","v":0}]
[]
[null,null,"Pin","Pin","Chip","Eurocard","Visa e.a."]
[{"$f":"A7","v":""},"Maandag"]
[{"$f":"A8","v":""},"Dinsdag"]
["","Woensdag"]
["","Donderdag"]
["","Vrijdag"]
["","Zaterdag"]
["","Zondag"]
[null,"Weektotaal",{"$f":"SUM(C17:C23)","v":0},{"$f":"SUM(D17:D23)","v":0},{"$f":"SUM(E17:E23)","v":0},{"$f":"SUM(F17:F23)","v":0},{"$f":"SUM(G17:G23)","v":0},{"$f":"IF(Licentie,SUM(C24:G24),0)","v":0}]
[]
[null,"Kadobonnen ingewisseld","( aangeslagen op kassa, goederen verlaten winkel)"]
[null,"Kadobonnen verkocht","(wordt niet aangeslagen op kassa)"]
[]
[null,"Bankstorting ","contant geld"]
[null,"Bankstorting ","contant geld"]
[null,"Bankstorting ","contant geld"]
[null,"Van bank opgenomen"]
[]
[null,"Overige uitgaven:","Omschrijving:","Aan wie:","Bedrag:"]
[]
[]
[]
[]
[]
[]
[]
[]
[]
[]
[]
[]
[]
[null,"Prive opname"]
[null,"Totaal uitgaven",null,null,{"$f":"SUM(E35:E48)","v":0},null,null,{"$f":"SUM(E49)","v":0}]
[]
[null,null,null,null,null,null,"kasverschillen"]
[]
[null,"Geteld kasgeld hier vermelden:",null,null,null,null,"Tellingen",{"$f":"IF(Licentie,SUM(H5:H52),0)","v":0},{"$f":"IF(Licentie,SUM(I5:I52),0)","v":0}]
[]
[]
[null,null,null,null,null,"Kassaldo","einde week:",null,{"$f":"SUM(I53-H53)","v":0}]
[]
[null,"Bijzonderheden:"]

{"sheet":"4","index":3,"n_rows":58,"n_cols":9,"rows_kept":58,"cut":false,"hidden":false,"merged":[]}
[null,{"$f":"KbTxt","v":"Kasboek"},"Weeknr: ",4,"Jaar :  ",{"$f":"jaar","v":0},"Winkel :",{"$f":"naam","v":0}]
[]
["Datum:","Omschrijving",null,null,null,null,null,"Uitgaven","Inkomsten"]
[]
[null,null,null,null,"Verkopen","Overige","Omschrij-","Beginsaldo",{"$f":"IF(Licentie,INDIRECT(\"'\"&D1-1&\"'!I56\"),0)","v":0}]
[null,null,"Kassa 1","Kassa 2","op rekening","inkomsten","ving"]
[{"$f":"IF(jr,\"\",INDIRECT(\"'\"&D1-1&\"'!A13\")+1)","v":""},"Omzet maandag"]
[{"$f":"IF(jr,\"\",A7+1)","v":""},"Omzet dinsdag"]
["","Omzet woensdag"]
["","Omzet donderdag"]
["","Omzet vrijdag"]
["","Omzet zaterdag"]
["","Omzet zondag"]
[null,"Weektotaal",{"$f":"SUM(C7:C13)","v":0},{"$f":"SUM(D7:D13)","v":0},{"$f":"SUM(E7:E13)","v":0},{"$f":"SUM(F7:F13)","v":0},{"$f":"SUM(G7:G13)","v":0},null,{"$f":"IF(Licentie,SUM(C14:G14),0)","v":0}]
[]
[null,null,"Pin","Pin","Chip","Eurocard","Visa e.a."]
[{"$f":"A7","v":""},"Maandag"]
[{"$f":"A8","v":""},"Dinsdag"]
["","Woensdag"]
["","Donderdag"]
["","Vrijdag"]
["","Zaterdag"]
["","Zondag"]
[null,"Weektotaal",{"$f":"SUM(C17:C23)","v":0},{"$f":"SUM(D17:D23)","v":0},{"$f":"SUM(E17:E23)","v":0},{"$f":"SUM(F17:F23)","v":0},{"$f":"SUM(G17:G23)","v":0},{"$f":"IF(Licentie,SUM(C24:G24),0)","v":0}]
[]
[null,"Kadobonnen ingewisseld","( aangeslagen op kassa, goederen verlaten winkel)"]
[null,"Kadobonnen verkocht","(wordt niet aangeslagen op kassa)"]
[]
[null,"Bankstorting ","contant geld"]
[null,"Bankstorting ","contant geld"]
[null,"Bankstorting ","contant geld"]
[null,"Van bank opgenomen"]
[]
[null,"Overige uitgaven:","Omschrijving:","Aan wie:","Bedrag:"]
[]
[]
[]
[]
[]
[]
[]
[]
[]
[]
[]
[]
[]
[null,"Prive opname"]
[null,"Totaal uitgaven",null,null,{"$f":"SUM(E35:E48)","v":0},null,null,{"$f":"SUM(E49)","v":0}]
[]
[null,null,null,null,null,null,"kasverschillen"]
[]
[null,"Geteld kasgeld hier vermelden:",null,null,null,null,"Tellingen",{"$f":"IF(Licentie,SUM(H5:H52),0)","v":0},{"$f":"IF(Licentie,SUM(I5:I52),0)","v":0}]
[]
[]
[null,null,null,null,null,"Kassaldo","einde week:",null,{"$f":"SUM(I53-H53)","v":0}]
[]
[null,"Bijzonderheden:"]

{"sheet":"5","index":4,"n_rows":58,"n_cols":9,"rows_kept":58,"cut":false,"hidden":false,"merged":[]}
[null,{"$f":"KbTxt","v":"Kasboek"},"Weeknr: ",5,"Jaar :  ",{"$f":"jaar","v":0},"Winkel :",{"$f":"naam","v":0}]
[]
["Datum:","Omschrijving",null,null,null,null,null,"Uitgaven","Inkomsten"]
[]
[null,null,null,null,"Verkopen","Overige","Omschrij-","Beginsaldo",{"$f":"IF(Licentie,INDIRECT(\"'\"&D1-1&\"'!I56\"),0)","v":0}]
[null,null,"Kassa 1","Kassa 2","op rekening","inkomsten","ving"]
[{"$f":"IF(jr,\"\",INDIRECT(\"'\"&D1-1&\"'!A13\")+1)","v":""},"Omzet maandag"]
[{"$f":"IF(jr,\"\",A7+1)","v":""},"Omzet dinsdag"]
["","Omzet woensdag"]
["","Omzet donderdag"]
["","Omzet vrijdag"]
["","Omzet zaterdag"]
["","Omzet zondag"]
[null,"Weektotaal",{"$f":"SUM(C7:C13)","v":0},{"$f":"SUM(D7:D13)","v":0},{"$f":"SUM(E7:E13)","v":0},{"$f":"SUM(F7:F13)","v":0},{"$f":"SUM(G7:G13)","v":0},null,{"$f":"IF(Licentie,SUM(C14:G14),0)","v":0}]
[]
[null,null,"Pin","Pin","Chip","Eurocard","Visa e.a."]
[{"$f":"A7","v":""},"Maandag"]
[{"$f":"A8","v":""},"Dinsdag"]
["","Woensdag"]
["","Donderdag"]
["","Vrijdag"]
["","Zaterdag"]
["","Zondag"]
[null,"Weektotaal",{"$f":"SUM(C17:C23)","v":0},{"$f":"SUM(D17:D23)","v":0},{"$f":"SUM(E17:E23)","v":0},{"$f":"SUM(F17:F23)","v":0},{"$f":"SUM(G17:G23)","v":0},{"$f":"IF(Licentie,SUM(C24:G24),0)","v":0}]
[]
[null,"Kadobonnen ingewisseld","( aangeslagen op kassa, goederen verlaten winkel)"]
[null,"Kadobonnen verkocht","(wordt niet aangeslagen op kassa)"]
[]
[null,"Bankstorting ","contant geld"]
[null,"Bankstorting ","contant geld"]
[null,"Bankstorting ","contant geld"]
[null,"Van bank opgenomen"]
[]
[null,"Overige uitgaven:","Omschrijving:","Aan wie:","Bedrag:"]
[]
[]
[]
[]
[]
[]
[]
[]
[]
[]
[]
[]
[]
[null,"Prive opname"]
[null,"Totaal uitgaven",null,null,{"$f":"SUM(E35:E48)","v":0},null,null,{"$f":"SUM(E49)","v":0}]
[]
[null,null,null,null,null,null,"kasverschillen"]
[]
[null,"Geteld kasgeld hier vermelden:",null,null,null,null,"Tellingen",{"$f":"IF(Licentie,SUM(H5:H52),0)","v":0},{"$f":"IF(Licentie,SUM(I5:I52),0)","v":0}]
[]
[]
[null,null,null,null,null,"Kassaldo","einde week:",null,{"$f":"SUM(I53-H53)","v":0}]
[]
[null,"Bijzonderheden:"]

{"sheet":"6","index":5,"n_rows":58,"n_cols":9,"rows_kept":58,"cut":false,"hidden":false,"merged":[]}
[null,{"$f":"KbTxt","v":"Kasboek"},"Weeknr: ",6,"Jaar :  ",{"$f":"jaar","v":0},"Winkel :",{"$f":"naam","v":0}]
[]
["Datum:","Omschrijving",null,null,null,null,null,"Uitgaven","Inkomsten"]
[]
[null,null,null,null,"Verkopen","Overige","Omschrij-","Beginsaldo",{"$f":"IF(Licentie,INDIRECT(\"'\"&D1-1&\"'!I56\"),0)","v":0}]
[null,null,"Kassa 1","Kassa 2","op rekening","inkomsten","ving"]
[{"$f":"IF(jr,\"\",INDIRECT(\"'\"&D1-1&\"'!A13\")+1)","v":""},"Omzet maandag"]
[{"$f":"IF(jr,\"\",A7+1)","v":""},"Omzet dinsdag"]
["","Omzet woensdag"]
["","Omzet donderdag"]
["","Omzet vrijdag"]
["","Omzet zaterdag"]
["","Omzet zondag"]
[null,"Weektotaal",{"$f":"SUM(C7:C13)","v":0},{"$f":"SUM(D7:D13)","v":0},{"$f":"SUM(E7:E13)","v":0},{"$f":"SUM(F7:F13)","v":0},{"$f":"SUM(G7:G13)","v":0},null,{"$f":"IF(Licentie,SUM(C14:G14),0)","v":0}]
[]
[null,null,"Pin","Pin","Chip","Eurocard","Visa e.a."]
[{"$f":"A7","v":""},"Maandag"]
[{"$f":"A8","v":""},"Dinsdag"]
["","Woensdag"]
["","Donderdag"]
["","Vrijdag"]
["","Zaterdag"]
["","Zondag"]
[null,"Weektotaal",{"$f":"SUM(C17:C23)","v":0},{"$f":"SUM(D17:D23)","v":0},{"$f":"SUM(E17:E23)","v":0},{"$f":"SUM(F17:F23)","v":0},{"$f":"SUM(G17:G23)","v":0},{"$f":"IF(Licentie,SUM(C24:G24),0)","v":0}]
[]
[null,"Kadobonnen ingewisseld","( aangeslagen op kassa, goederen verlaten winkel)"]
[null,"Kadobonnen verkocht","(wordt niet aangeslagen op kassa)"]
[]
[null,"Bankstorting ","contant geld"]
[null,"Bankstorting ","contant geld"]
[null,"Bankstorting ","contant geld"]
[null,"Van bank opgenomen"]
[]
[null,"Overige uitgaven:","Omschrijving:","Aan wie:","Bedrag:"]
[]
[]
[]
[]
[]
[]
[]
[]
[]
[]
[]
[]
[]
[null,"Prive opname"]
[null,"Totaal uitgaven",null,null,{"$f":"SUM(E35:E48)","v":0},null,null,{"$f":"SUM(E49)","v":0}]
[]
[null,null,null,null,null,null,"kasverschillen"]
[]
[null,"Geteld kasgeld hier vermelden:",null,null,null,null,"Tellingen",{"$f":"IF(Licentie,SUM(H5:H52),0)","v":0},{"$f":"IF(Licentie,SUM(I5:I52),0)","v":0}]
[]
[]
[null,null,null,null,null,"Kassaldo","einde week:",null,{"$f":"SUM(I53-H53)","v":0}]
[]
[null,"Bijzonderheden:"]

{"sheet":"7","index":6,"n_rows":58,"n_cols":9,"rows_kept":58,"cut":false,"hidden":false,"merged":[]}
[null,{"$f":"KbTxt","v":"Kasboek"},"Weeknr: ",7,"Jaar :  ",{"$f":"jaar","v":0},"Winkel :",{"$f":"naam","v":0}]
[]
["Datum:","Omschrijving",null,null,null,null,null,"Uitgaven","Inkomsten"]
[]
[null,null,null,null,"Verkopen","Overige","Omschrij-","Beginsaldo",{"$f":"IF(Licentie,INDIRECT(\"'\"&D1-1&\"'!I56\"),0)","v":0}]
[null,null,"Kassa 1","Kassa 2","op rekening","inkomsten","ving"]
[{"$f":"IF(jr,\"\",INDIRECT(\"'\"&D1-1&\"'!A13\")+1)","v":""},"Omzet maandag"]
[{"$f":"IF(jr,\"\",A7+1)","v":""},"Omzet dinsdag"]
["","Omzet woensdag"]
["","Omzet donderdag"]
["","Omzet vrijdag"]
["","Omzet zaterdag"]
["","Omzet zondag"]
[null,"Weektotaal",{"$f":"SUM(C7:C13)","v":0},{"$f":"SUM(D7:D13)","v":0},{"$f":"SUM(E7:E13)","v":0},{"$f":"SUM(F7:F13)","v":0},{"$f":"SUM(G7:G13)","v":0},null,{"$f":"IF(Licentie,SUM(C14:G14),0)","v":0}]
[]
[null,null,"Pin","Pin","Chip","Eurocard","Visa e.a."]
[{"$f":"A7","v":""},"Maandag"]
[{"$f":"A8","v":""},"Dinsdag"]
["","Woensdag"]
["","Donderdag"]
["","Vrijdag"]
["","Zaterdag"]
["","Zondag"]
[null,"Weektotaal",{"$f":"SUM(C17:C23)","v":0},{"$f":"SUM(D17:D23)","v":0},{"$f":"SUM(E17:E23)","v":0},{"$f":"SUM(F17:F23)","v":0},{"$f":"SUM(G17:G23)","v":0},{"$f":"IF(Licentie,SUM(C24:G24),0)","v":0}]
[]
[null,"Kadobonnen ingewisseld","( aangeslagen op kassa, goederen verlaten winkel)"]
[null,"Kadobonnen verkocht","(wordt niet aangeslagen op kassa)"]
[]
[null,"Bankstorting ","contant geld"]
[null,"Bankstorting ","contant geld"]
[null,"Bankstorting ","contant geld"]
[null,"Van bank opgenomen"]
[]
[null,"Overige uitgaven:","Omschrijving:","Aan wie:","Bedrag:"]
[]
[]
[]
[]
[]
[]
[]
[]
[]
[]
[]
[]
[]
[null,"Prive opname"]
[null,"Totaal uitgaven",null,null,{"$f":"SUM(E35:E48)","v":0},null,null,{"$f":"SUM(E49)","v":0}]
[]
[null,null,null,null,null,null,"kasverschillen"]
[]
[null,"Geteld kasgeld hier vermelden:",null,null,null,null,"Tellingen",{"$f":"IF(Licentie,SUM(H5:H52),0)","v":0},{"$f":"IF(Licentie,SUM(I5:I52),0)","v":0}]
[]
[]
[null,null,null,null,null,"Kassaldo","einde week:",null,{"$f":"SUM(I53-H53)","v":0}]
[]
[null,"Bijzonderheden:"]

{"sheet":"8","index":7,"n_rows":58,"n_cols":9,"rows_kept":58,"cut":false,"hidden":false,"merged":[]}
[null,{"$f":"KbTxt","v":"Kasboek"},"Weeknr: ",8,"Jaar :  ",{"$f":"jaar","v":0},"Winkel :",{"$f":"naam","v":0}]
[]
["Datum:","Omschrijving",null,null,null,null,null,"Uitgaven","Inkomsten"]
[]
[null,null,null,null,"Verkopen","Overige","Omschrij-","Beginsaldo",{"$f":"IF(Licentie,INDIRECT(\"'\"&D1-1&\"'!I56\"),0)","v":0}]
[null,null,"Kassa 1","Kassa 2","op rekening","inkomsten","ving"]
[{"$f":"IF(jr,\"\",INDIRECT(\"'\"&D1-1&\"'!A13\")+1)","v":""},"Omzet maandag"]
[{"$f":"IF(jr,\"\",A7+1)","v":""},"Omzet dinsdag"]
["","Omzet woensdag"]
["","Omzet donderdag"]
["","Omzet vrijdag"]
["","Omzet zaterdag"]
["","Omzet zondag"]
[null,"Weektotaal",{"$f":"SUM(C7:C13)","v":0},{"$f":"SUM(D7:D13)","v":0},{"$f":"SUM(E7:E13)","v":0},{"$f":"SUM(F7:F13)","v":0},{"$f":"SUM(G7:G13)","v":0},null,{"$f":"IF(Licentie,SUM(C14:G14),0)","v":0}]
[]
[null,null,"Pin","Pin","Chip","Eurocard","Visa e.a."]
[{"$f":"A7","v":""},"Maandag"]
[{"$f":"A8","v":""},"Dinsdag"]
["","Woensdag"]
["","Donderdag"]
["","Vrijdag"]
["","Zaterdag"]
["","Zondag"]
[null,"Weektotaal",{"$f":"SUM(C17:C23)","v":0},{"$f":"SUM(D17:D23)","v":0},{"$f":"SUM(E17:E23)","v":0},{"$f":"SUM(F17:F23)","v":0},{"$f":"SUM(G17:G23)","v":0},{"$f":"IF(Licentie,SUM(C24:G24),0)","v":0}]
[]
[null,"Kadobonnen ingewisseld","( aangeslagen op kassa, goederen verlaten winkel)"]
[null,"Kadobonnen verkocht","(wordt niet aangeslagen op kassa)"]
[]
[null,"Bankstorting ","contant geld"]
[null,"Bankstorting ","contant geld"]
[null,"Bankstorting ","contant geld"]
[null,"Van bank opgenomen"]
[]
[null,"Overige uitgaven:","Omschrijving:","Aan wie:","Bedrag:"]
[]
[]
[]
[]
[]
[]
[]
[]
[]
[]
[]
[]
[]
[null,"Prive opname"]
[null,"Totaal uitgaven",null,null,{"$f":"SUM(E35:E48)","v":0},null,null,{"$f":"SUM(E49)","v":0}]
[]
[null,null,null,null,null,null,"kasverschillen"]
[]
[null,"Geteld kasgeld hier vermelden:",null,null,null,null,"Tellingen",{"$f":"IF(Licentie,SUM(H5:H52),0)","v":0},{"$f":"IF(Licentie,SUM(I5:I52),0)","v":0}]
[]
[]
[null,null,null,null,null,"Kassaldo","einde week:",null,{"$f":"SUM(I53-H53)","v":0}]
[]
[null,"Bijzonderheden:"]

{"sheet":"9","index":8,"n_rows":58,"n_cols":9,"rows_kept":58,"cut":false,"hidden":false,"merged":[]}
[null,{"$f":"KbTxt","v":"Kasboek"},"Weeknr: ",9,"Jaar :  ",{"$f":"jaar","v":0},"Winkel :",{"$f":"naam","v":0}]
[]
["Datum:","Omschrijving",null,null,null,null,null,"Uitgaven","Inkomsten"]
[]
[null,null,null,null,"Verkopen","Overige","Omschrij-","Beginsaldo",{"$f":"IF(Licentie,INDIRECT(\"'\"&D1-1&\"'!I56\"),0)","v":0}]
[null,null,"Kassa 1","Kassa 2","op rekening","inkomsten","ving"]
[{"$f":"IF(jr,\"\",INDIRECT(\"'\"&D1-1&\"'!A13\")+1)","v":""},"Omzet maandag"]
[{"$f":"IF(jr,\"\",A7+1)","v":""},"Omzet dinsdag"]
["","Omzet woensdag"]
["","Omzet donderdag"]
["","Omzet vrijdag"]
["","Omzet zaterdag"]
["","Omzet zondag"]
[null,"Weektotaal",{"$f":"SUM(C7:C13)","v":0},{"$f":"SUM(D7:D13)","v":0},{"$f":"SUM(E7:E13)","v":0},{"$f":"SUM(F7:F13)","v":0},{"$f":"SUM(G7:G13)","v":0},null,{"$f":"IF(Licentie,SUM(C14:G14),0)","v":0}]
[]
[null,null,"Pin","Pin","Chip","Eurocard","Visa e.a."]
[{"$f":"A7","v":""},"Maandag"]
[{"$f":"A8","v":""},"Dinsdag"]
["","Woensdag"]
["","Donderdag"]
["","Vrijdag"]
["","Zaterdag"]
["","Zondag"]
[null,"Weektotaal",{"$f":"SUM(C17:C23)","v":0},{"$f":"SUM(D17:D23)","v":0},{"$f":"SUM(E17:E23)","v":0},{"$f":"SUM(F17:F23)","v":0},{"$f":"SUM(G17:G23)","v":0},{"$f":"IF(Licentie,SUM(C24:G24),0)","v":0}]
[]
[null,"Kadobonnen ingewisseld","( aangeslagen op kassa, goederen verlaten winkel)"]
[null,"Kadobonnen verkocht","(wordt niet aangeslagen op kassa)"]
[]
[null,"Bankstorting ","contant geld"]
[null,"Bankstorting ","contant geld"]
[null,"Bankstorting ","contant geld"]
[null,"Van bank opgenomen"]
[]
[null,"Overige uitgaven:","Omschrijving:","Aan wie:","Bedrag:"]
[]
[]
[]
[]
[]
[]
[]
[]
[]
[]
[]
[]
[]
[null,"Prive opname"]
[null,"Totaal uitgaven",null,null,{"$f":"SUM(E35:E48)","v":0},null,null,{"$f":"SUM(E49)","v":0}]
[]
[null,null,null,null,null,null,"kasverschillen"]
[]
[null,"Geteld kasgeld hier vermelden:",null,null,null,null,"Tellingen",{"$f":"IF(Licentie,SUM(H5:H52),0)","v":0},{"$f":"IF(Licentie,SUM(I5:I52),0)","v":0}]
[]
[]
[null,null,null,null,null,"Kassaldo","einde week:",null,{"$f":"SUM(I53-H53)","v":0}]
[]
[null,"Bijzonderheden:"]

{"sheet":"10","index":9,"n_rows":58,"n_cols":9,"rows_kept":58,"cut":false,"hidden":false,"merged":[]}
[null,{"$f":"KbTxt","v":"Kasboek"},"Weeknr: ",10,"Jaar :  ",{"$f":"jaar","v":0},"Winkel :",{"$f":"naam","v":0}]
[]
["Datum:","Omschrijving",null,null,null,null,null,"Uitgaven","Inkomsten"]
[]
[null,null,null,null,"Verkopen","Overige","Omschrij-","Beginsaldo",{"$f":"IF(Licentie,INDIRECT(\"'\"&D1-1&\"'!I56\"),0)","v":0}]
[null,null,"Kassa 1","Kassa 2","op rekening","inkomsten","ving"]
[{"$f":"IF(jr,\"\",INDIRECT(\"'\"&D1-1&\"'!A13\")+1)","v":""},"Omzet maandag"]
[{"$f":"IF(jr,\"\",A7+1)","v":""},"Omzet dinsdag"]
["","Omzet woensdag"]
["","Omzet donderdag"]
["","Omzet vrijdag"]
["","Omzet zaterdag"]
["","Omzet zondag"]
[null,"Weektotaal",{"$f":"SUM(C7:C13)","v":0},{"$f":"SUM(D7:D13)","v":0},{"$f":"SUM(E7:E13)","v":0},{"$f":"SUM(F7:F13)","v":0},{"$f":"SUM(G7:G13)","v":0},null,{"$f":"IF(Licentie,SUM(C14:G14),0)","v":0}]
[]
[null,null,"Pin","Pin","Chip","Eurocard","Visa e.a."]
[{"$f":"A7","v":""},"Maandag"]
[{"$f":"A8","v":""},"Dinsdag"]
["","Woensdag"]
["","Donderdag"]
["","Vrijdag"]
["","Zaterdag"]
["","Zondag"]
[null,"Weektotaal",{"$f":"SUM(C17:C23)","v":0},{"$f":"SUM(D17:D23)","v":0},{"$f":"SUM(E17:E23)","v":0},{"$f":"SUM(F17:F23)","v":0},{"$f":"SUM(G17:G23)","v":0},{"$f":"IF(Licentie,SUM(C24:G24),0)","v":0}]
[]
[null,"Kadobonnen ingewisseld","( aangeslagen op kassa, goederen verlaten winkel)"]
[null,"Kadobonnen verkocht","(wordt niet aangeslagen op kassa)"]
[]
[null,"Bankstorting ","contant geld"]
[null,"Bankstorting ","contant geld"]
[null,"Bankstorting ","contant geld"]
[null,"Van bank opgenomen"]
[]
[null,"Overige uitgaven:","Omschrijving:","Aan wie:","Bedrag:"]
[]
[]
[]
[]
[]
[]
[]
[]
[]
[]
[]
[]
[]
[null,"Prive opname"]
[null,"Totaal uitgaven",null,null,{"$f":"SUM(E35:E48)","v":0},null,null,{"$f":"SUM(E49)","v":0}]
[]
[null,null,null,null,null,null,"kasverschillen"]
[]
[null,"Geteld kasgeld hier vermelden:",null,null,null,null,"Tellingen",{"$f":"IF(Licentie,SUM(H5:H52),0)","v":0},{"$f":"IF(Licentie,SUM(I5:I52),0)","v":0}]
[]
[]
[null,null,null,null,null,"Kassaldo","einde week:",null,{"$f":"SUM(I53-H53)","v":0}]
[]
[null,"Bijzonderheden:"]

{"sheet":"11","index":10,"n_rows":58,"n_cols":9,"rows_kept":58,"cut":false,"hidden":false,"merged":[]}
[null,{"$f":"KbTxt","v":"Kasboek"},"Weeknr: ",11,"Jaar :  ",{"$f":"jaar","v":0},"Winkel :",{"$f":"naam","v":0}]
[]
["Datum:","Omschrijving",null,null,null,null,null,"Uitgaven","Inkomsten"]
[]
[null,null,null,null,"Verkopen","Overige","Omschrij-","Beginsaldo",{"$f":"IF(Licentie,INDIRECT(\"'\"&D1-1&\"'!I56\"),0)","v":0}]
[null,null,"Kassa 1","Kassa 2","op rekening","inkomsten","ving"]
[{"$f":"IF(jr,\"\",INDIRECT(\"'\"&D1-1&\"'!A13\")+1)","v":""},"Omzet maandag"]
[{"$f":"IF(jr,\"\",A7+1)","v":""},"Omzet dinsdag"]
["","Omzet woensdag"]
["","Omzet donderdag"]
["","Omzet vrijdag"]
["","Omzet zaterdag"]
["","Omzet zondag"]
[null,"Weektotaal",{"$f":"SUM(C7:C13)","v":0},{"$f":"SUM(D7:D13)","v":0},{"$f":"SUM(E7:E13)","v":0},{"$f":"SUM(F7:F13)","v":0},{"$f":"SUM(G7:G13)","v":0},null,{"$f":"IF(Licentie,SUM(C14:G14),0)","v":0}]
[]
[null,null,"Pin","Pin","Chip","Eurocard","Visa e.a."]
[{"$f":"A7","v":""},"Maandag"]
[{"$f":"A8","v":""},"Dinsdag"]
["","Woensdag"]
["","Donderdag"]
["","Vrijdag"]
["","Zaterdag"]
["","Zondag"]
[null,"Weektotaal",{"$f":"SUM(C17:C23)","v":0},{"$f":"SUM(D17:D23)","v":0},{"$f":"SUM(E17:E23)","v":0},{"$f":"SUM(F17:F23)","v":0},{"$f":"SUM(G17:G23)","v":0},{"$f":"IF(Licentie,SUM(C24:G24),0)","v":0}]
[]
[null,"Kadobonnen ingewisseld","( aangeslagen op kassa, goederen verlaten winkel)"]
[null,"Kadobonnen verkocht","(wordt niet aangeslagen op kassa)"]
[]
[null,"Bankstorting ","contant geld"]
[null,"Bankstorting ","contant geld"]
[null,"Bankstorting ","contant geld"]
[null,"Van bank opgenomen"]
[]
[null,"Overige uitgaven:","Omschrijving:","Aan wie:","Bedrag:"]
[]
[]
[]
[]
[]
[]
[]
[]
[]
[]
[]
[]
[]
[null,"Prive opname"]
[null,"Totaal uitgaven",null,null,{"$f":"SUM(E35:E48)","v":0},null,null,{"$f":"SUM(E49)","v":0}]
[]
[null,null,null,null,null,null,"kasverschillen"]
[]
[null,"Geteld kasgeld hier vermelden:",null,null,null,null,"Tellingen",{"$f":"IF(Licentie,SUM(H5:H52),0)","v":0},{"$f":"IF(Licentie,SUM(I5:I52),0)","v":0}]
[]
[]
[null,null,null,null,null,"Kassaldo","einde week:",null,{"$f":"SUM(I53-H53)","v":0}]
[]
[null,"Bijzonderheden:"]

{"sheet":"12","index":11,"n_rows":58,"n_cols":9,"rows_kept":58,"cut":false,"hidden":false,"merged":[]}
[null,{"$f":"KbTxt","v":"Kasboek"},"Weeknr: ",12,"Jaar :  ",{"$f":"jaar","v":0},"Winkel :",{"$f":"naam","v":0}]
[]
["Datum:","Omschrijving",null,null,null,null,null,"Uitgaven","Inkomsten"]
[]
[null,null,null,null,"Verkopen","Overige","Omschrij-","Beginsaldo",{"$f":"IF(Licentie,INDIRECT(\"'\"&D1-1&\"'!I56\"),0)","v":0}]
[null,null,"Kassa 1","Kassa 2","op rekening","inkomsten","ving"]
[{"$f":"IF(jr,\"\",INDIRECT(\"'\"&D1-1&\"'!A13\")+1)","v":""},"Omzet maandag"]
[{"$f":"IF(jr,\"\",A7+1)","v":""},"Omzet dinsdag"]
["","Omzet woensdag"]
["","Omzet donderdag"]
["","Omzet vrijdag"]
["","Omzet zaterdag"]
["","Omzet zondag"]
[null,"Weektotaal",{"$f":"SUM(C7:C13)","v":0},{"$f":"SUM(D7:D13)","v":0},{"$f":"SUM(E7:E13)","v":0},{"$f":"SUM(F7:F13)","v":0},{"$f":"SUM(G7:G13)","v":0},null,{"$f":"IF(Licentie,SUM(C14:G14),0)","v":0}]
[]
[null,null,"Pin","Pin","Chip","Eurocard","Visa e.a."]
[{"$f":"A7","v":""},"Maandag"]
[{"$f":"A8","v":""},"Dinsdag"]
["","Woensdag"]
["","Donderdag"]
["","Vrijdag"]
["","Zaterdag"]
["","Zondag"]
[null,"Weektotaal",{"$f":"SUM(C17:C23)","v":0},{"$f":"SUM(D17:D23)","v":0},{"$f":"SUM(E17:E23)","v":0},{"$f":"SUM(F17:F23)","v":0},{"$f":"SUM(G17:G23)","v":0},{"$f":"IF(Licentie,SUM(C24:G24),0)","v":0}]
[]
[null,"Kadobonnen ingewisseld","( aangeslagen op kassa, goederen verlaten winkel)"]
[null,"Kadobonnen verkocht","(wordt niet aangeslagen op kassa)"]
[]
[null,"Bankstorting ","contant geld"]
[null,"Bankstorting ","contant geld"]
[null,"Bankstorting ","contant geld"]
[null,"Van bank opgenomen"]
[]
[null,"Overige uitgaven:","Omschrijving:","Aan wie:","Bedrag:"]
[]
[]
[]
[]
[]
[]
[]
[]
[]
[]
[]
[]
[]
[null,"Prive opname"]
[null,"Totaal uitgaven",null,null,{"$f":"SUM(E35:E48)","v":0},null,null,{"$f":"SUM(E49)","v":0}]
[]
[null,null,null,null,null,null,"kasverschillen"]
[]
[null,"Geteld kasgeld hier vermelden:",null,null,null,null,"Tellingen",{"$f":"IF(Licentie,SUM(H5:H52),0)","v":0},{"$f":"IF(Licentie,SUM(I5:I52),0)","v":0}]
[]
[]
[null,null,null,null,null,"Kassaldo","einde week:",null,{"$f":"SUM(I53-H53)","v":0}]
[]
[null,"Bijzonderheden:"]

{"sheet":"13","index":12,"n_rows":58,"n_cols":9,"rows_kept":58,"cut":false,"hidden":false,"merged":[]}
[null,{"$f":"KbTxt","v":"Kasboek"},"Weeknr: ",13,"Jaar :  ",{"$f":"jaar","v":0},"Winkel :",{"$f":"naam","v":0}]
[]
["Datum:","Omschrijving",null,null,null,null,null,"Uitgaven","Inkomsten"]
[]
[null,null,null,null,"Verkopen","Overige","Omschrij-","Beginsaldo",{"$f":"IF(Licentie,INDIRECT(\"'\"&D1-1&\"'!I56\"),0)","v":0}]
[null,null,"Kassa 1","Kassa 2","op rekening","inkomsten","ving"]
[{"$f":"IF(jr,\"\",INDIRECT(\"'\"&D1-1&\"'!A13\")+1)","v":""},"Omzet maandag"]
[{"$f":"IF(jr,\"\",A7+1)","v":""},"Omzet dinsdag"]
["","Omzet woensdag"]
["","Omzet donderdag"]
["","Omzet vrijdag"]
["","Omzet zaterdag"]
["","Omzet zondag"]
[null,"Weektotaal",{"$f":"SUM(C7:C13)","v":0},{"$f":"SUM(D7:D13)","v":0},{"$f":"SUM(E7:E13)","v":0},{"$f":"SUM(F7:F13)","v":0},{"$f":"SUM(G7:G13)","v":0},null,{"$f":"IF(Licentie,SUM(C14:G14),0)","v":0}]
[]
[null,null,"Pin","Pin","Chip","Eurocard","Visa e.a."]
[{"$f":"A7","v":""},"Maandag"]
[{"$f":"A8","v":""},"Dinsdag"]
["","Woensdag"]
["","Donderdag"]
["","Vrijdag"]
["","Zaterdag"]
["","Zondag"]
[null,"Weektotaal",{"$f":"SUM(C17:C23)","v":0},{"$f":"SUM(D17:D23)","v":0},{"$f":"SUM(E17:E23)","v":0},{"$f":"SUM(F17:F23)","v":0},{"$f":"SUM(G17:G23)","v":0},{"$f":"IF(Licentie,SUM(C24:G24),0)","v":0}]
[]
[null,"Kadobonnen ingewisseld","( aangeslagen op kassa, goederen verlaten winkel)"]
[null,"Kadobonnen verkocht","(wordt niet aangeslagen op kassa)"]
[]
[null,"Bankstorting ","contant geld"]
[null,"Bankstorting ","contant geld"]
[null,"Bankstorting ","contant geld"]
[null,"Van bank opgenomen"]
[]
[null,"Overige uitgaven:","Omschrijving:","Aan wie:","Bedrag:"]
[]
[]
[]
[]
[]
[]
[]
[]
[]
[]
[]
[]
[]
[null,"Prive opname"]
[null,"Totaal uitgaven",null,null,{"$f":"SUM(E35:E48)","v":0},null,null,{"$f":"SUM(E49)","v":0}]
[]
[null,null,null,null,null,null,"kasverschillen"]
[]
[null,"Geteld kasgeld hier vermelden:",null,null,null,null,"Tellingen",{"$f":"IF(Licentie,SUM(H5:H52),0)","v":0},{"$f":"IF(Licentie,SUM(I5:I52),0)","v":0}]
[]
[]
[null,null,null,null,null,"Kassaldo","einde week:",null,{"$f":"SUM(I53-H53)","v":0}]
[]
[null,"Bijzonderheden:"]

{"sheet":"14","index":13,"n_rows":58,"n_cols":9,"rows_kept":58,"cut":false,"hidden":false,"merged":[]}
[null,{"$f":"KbTxt","v":"Kasboek"},"Weeknr: ",14,"Jaar :  ",{"$f":"jaar","v":0},"Winkel :",{"$f":"naam","v":0}]
[]
["Datum:","Omschrijving",null,null,null,null,null,"Uitgaven","Inkomsten"]
[]
[null,null,null,null,"Verkopen","Overige","Omschrij-","Beginsaldo",{"$f":"IF(Licentie,INDIRECT(\"'\"&D1-1&\"'!I56\"),0)","v":0}]
[null,null,"Kassa 1","Kassa 2","op rekening","inkomsten","ving"]
[{"$f":"IF(jr,\"\",INDIRECT(\"'\"&D1-1&\"'!A13\")+1)","v":""},"Omzet maandag"]
[{"$f":"IF(jr,\"\",A7+1)","v":""},"Omzet dinsdag"]
["","Omzet woensdag"]
["","Omzet donderdag"]
["","Omzet vrijdag"]
["","Omzet zaterdag"]
["","Omzet zondag"]
[null,"Weektotaal",{"$f":"SUM(C7:C13)","v":0},{"$f":"SUM(D7:D13)","v":0},{"$f":"SUM(E7:E13)","v":0},{"$f":"SUM(F7:F13)","v":0},{"$f":"SUM(G7:G13)","v":0},null,{"$f":"IF(Licentie,SUM(C14:G14),0)","v":0}]
[]
[null,null,"Pin","Pin","Chip","Eurocard","Visa e.a."]
[{"$f":"A7","v":""},"Maandag"]
[{"$f":"A8","v":""},"Dinsdag"]
["","Woensdag"]
["","Donderdag"]
["","Vrijdag"]
["","Zaterdag"]
["","Zondag"]
[null,"Weektotaal",{"$f":"SUM(C17:C23)","v":0},{"$f":"SUM(D17:D23)","v":0},{"$f":"SUM(E17:E23)","v":0},{"$f":"SUM(F17:F23)","v":0},{"$f":"SUM(G17:G23)","v":0},{"$f":"IF(Licentie,SUM(C24:G24),0)","v":0}]
[]
[null,"Kadobonnen ingewisseld","( aangeslagen op kassa, goederen verlaten winkel)"]
[null,"Kadobonnen verkocht","(wordt niet aangeslagen op kassa)"]
[]
[null,"Bankstorting ","contant geld"]
[null,"Bankstorting ","contant geld"]
[null,"Bankstorting ","contant geld"]
[null,"Van bank opgenomen"]
[]
[null,"Overige uitgaven:","Omschrijving:","Aan wie:","Bedrag:"]
[]
[]
[]
[]
[]
[]
[]
[]
[]
[]
[]
[]
[]
[null,"Prive opname"]
[null,"Totaal uitgaven",null,null,{"$f":"SUM(E35:E48)","v":0},null,null,{"$f":"SUM(E49)","v":0}]
[]
[null,null,null,null,null,null,"kasverschillen"]
[]
[null,"Geteld kasgeld hier vermelden:",null,null,null,null,"Tellingen",{"$f":"IF(Licentie,SUM(H5:H52),0)","v":0},{"$f":"IF(Licentie,SUM(I5:I52),0)","v":0}]
[]
[]
[null,null,null,null,null,"Kassaldo","einde week:",null,{"$f":"SUM(I53-H53)","v":0}]
[]
[null,"Bijzonderheden:"]

{"sheet":"15","index":14,"n_rows":58,"n_cols":9,"rows_kept":58,"cut":false,"hidden":false,"merged":[]}
[null,{"$f":"KbTxt","v":"Kasboek"},"Weeknr: ",15,"Jaar :  ",{"$f":"jaar","v":0},"Winkel :",{"$f":"naam","v":0}]
[]
["Datum:","Omschrijving",null,null,null,null,null,"Uitgaven","Inkomsten"]
[]
[null,null,null,null,"Verkopen","Overige","Omschrij-","Beginsaldo",{"$f":"IF(Licentie,INDIRECT(\"'\"&D1-1&\"'!I56\"),0)","v":0}]
[null,null,"Kassa 1","Kassa 2","op rekening","inkomsten","ving"]
[{"$f":"IF(jr,\"\",INDIRECT(\"'\"&D1-1&\"'!A13\")+1)","v":""},"Omzet maandag"]
[{"$f":"IF(jr,\"\",A7+1)","v":""},"Omzet dinsdag"]
["","Omzet woensdag"]
["","Omzet donderdag"]
["","Omzet vrijdag"]
["","Omzet zaterdag"]
["","Omzet zondag"]
[null,"Weektotaal",{"$f":"SUM(C7:C13)","v":0},{"$f":"SUM(D7:D13)","v":0},{"$f":"SUM(E7:E13)","v":0},{"$f":"SUM(F7:F13)","v":0},{"$f":"SUM(G7:G13)","v":0},null,{"$f":"IF(Licentie,SUM(C14:G14),0)","v":0}]
[]
[null,null,"Pin","Pin","Chip","Eurocard","Visa e.a."]
[{"$f":"A7","v":""},"Maandag"]
[{"$f":"A8","v":""},"Dinsdag"]
["","Woensdag"]
["","Donderdag"]
["","Vrijdag"]
["","Zaterdag"]
["","Zondag"]
[null,"Weektotaal",{"$f":"SUM(C17:C23)","v":0},{"$f":"SUM(D17:D23)","v":0},{"$f":"SUM(E17:E23)","v":0},{"$f":"SUM(F17:F23)","v":0},{"$f":"SUM(G17:G23)","v":0},{"$f":"IF(Licentie,SUM(C24:G24),0)","v":0}]
[]
[null,"Kadobonnen ingewisseld","( aangeslagen op kassa, goederen verlaten winkel)"]
[null,"Kadobonnen verkocht","(wordt niet aangeslagen op kassa)"]
[]
[null,"Bankstorting ","contant geld"]
[null,"Bankstorting ","contant geld"]
[null,"Bankstorting ","contant geld"]
[null,"Van bank opgenomen"]
[]
[null,"Overige uitgaven:","Omschrijving:","Aan wie:","Bedrag:"]
[]
[]
[]
[]
[]
[]
[]
[]
[]
[]
[]
[]
[]
[null,"Prive opname"]
[null,"Totaal uitgaven",null,null,{"$f":"SUM(E35:E48)","v":0},null,null,{"$f":"SUM(E49)","v":0}]
[]
[null,null,null,null,null,null,"kasverschillen"]
[]
[null,"Geteld kasgeld hier vermelden:",null,null,null,null,"Tellingen",{"$f":"IF(Licentie,SUM(H5:H52),0)","v":0},{"$f":"IF(Licentie,SUM(I5:I52),0)","v":0}]
[]
[]
[null,null,null,null,null,"Kassaldo","einde week:",null,{"$f":"SUM(I53-H53)","v":0}]
[]
[null,"Bijzonderheden:"]

{"sheet":"16","index":15,"n_rows":58,"n_cols":9,"rows_kept":58,"cut":false,"hidden":false,"merged":[]}
[null,{"$f":"KbTxt","v":"Kasboek"},"Weeknr: ",16,"Jaar :  ",{"$f":"jaar","v":0},"Winkel :",{"$f":"naam","v":0}]
[]
["Datum:","Omschrijving",null,null,null,null,null,"Uitgaven","Inkomsten"]
[]
[null,null,null,null,"Verkopen","Overige","Omschrij-","Beginsaldo",{"$f":"IF(Licentie,INDIRECT(\"'\"&D1-1&\"'!I56\"),0)","v":0}]
[null,null,"Kassa 1","Kassa 2","op rekening","inkomsten","ving"]
[{"$f":"IF(jr,\"\",INDIRECT(\"'\"&D1-1&\"'!A13\")+1)","v":""},"Omzet maandag"]
[{"$f":"IF(jr,\"\",A7+1)","v":""},"Omzet dinsdag"]
["","Omzet woensdag"]
["","Omzet donderdag"]
["","Omzet vrijdag"]
["","Omzet zaterdag"]
["","Omzet zondag"]
[null,"Weektotaal",{"$f":"SUM(C7:C13)","v":0},{"$f":"SUM(D7:D13)","v":0},{"$f":"SUM(E7:E13)","v":0},{"$f":"SUM(F7:F13)","v":0},{"$f":"SUM(G7:G13)","v":0},null,{"$f":"IF(Licentie,SUM(C14:G14),0)","v":0}]
[]
[null,null,"Pin","Pin","Chip","Eurocard","Visa e.a."]
[{"$f":"A7","v":""},"Maandag"]
[{"$f":"A8","v":""},"Dinsdag"]
["","Woensdag"]
["","Donderdag"]
["","Vrijdag"]
["","Zaterdag"]
["","Zondag"]
[null,"Weektotaal",{"$f":"SUM(C17:C23)","v":0},{"$f":"SUM(D17:D23)","v":0},{"$f":"SUM(E17:E23)","v":0},{"$f":"SUM(F17:F23)","v":0},{"$f":"SUM(G17:G23)","v":0},{"$f":"IF(Licentie,SUM(C24:G24),0)","v":0}]
[]
[null,"Kadobonnen ingewisseld","( aangeslagen op kassa, goederen verlaten winkel)"]
[null,"Kadobonnen verkocht","(wordt niet aangeslagen op kassa)"]
[]
[null,"Bankstorting ","contant geld"]
[null,"Bankstorting ","contant geld"]
[null,"Bankstorting ","contant geld"]
[null,"Van bank opgenomen"]
[]
[null,"Overige uitgaven:","Omschrijving:","Aan wie:","Bedrag:"]
[]
[]
[]
[]
[]
[]
[]
[]
[]
[]
[]
[]
[]
[null,"Prive opname"]
[null,"Totaal uitgaven",null,null,{"$f":"SUM(E35:E48)","v":0},null,null,{"$f":"SUM(E49)","v":0}]
[]
[null,null,null,null,null,null,"kasverschillen"]
[]
[null,"Geteld kasgeld hier vermelden:",null,null,null,null,"Tellingen",{"$f":"IF(Licentie,SUM(H5:H52),0)","v":0},{"$f":"IF(Licentie,SUM(I5:I52),0)","v":0}]
[]
[]
[null,null,null,null,null,"Kassaldo","einde week:",null,{"$f":"SUM(I53-H53)","v":0}]
[]
[null,"Bijzonderheden:"]

{"sheet":"17","index":16,"n_rows":58,"n_cols":9,"rows_kept":58,"cut":false,"hidden":false,"merged":[]}
[null,{"$f":"KbTxt","v":"Kasboek"},"Weeknr: ",17,"Jaar :  ",{"$f":"jaar","v":0},"Winkel :",{"$f":"naam","v":0}]
[]
["Datum:","Omschrijving",null,null,null,null,null,"Uitgaven","Inkomsten"]
[]
[null,null,null,null,"Verkopen","Overige","Omschrij-","Beginsaldo",{"$f":"IF(Licentie,INDIRECT(\"'\"&D1-1&\"'!I56\"),0)","v":0}]
[null,null,"Kassa 1","Kassa 2","op rekening","inkomsten","ving"]
[{"$f":"IF(jr,\"\",INDIRECT(\"'\"&D1-1&\"'!A13\")+1)","v":""},"Omzet maandag"]
[{"$f":"IF(jr,\"\",A7+1)","v":""},"Omzet dinsdag"]
["","Omzet woensdag"]
["","Omzet donderdag"]
["","Omzet vrijdag"]
["","Omzet zaterdag"]
["","Omzet zondag"]
[null,"Weektotaal",{"$f":"SUM(C7:C13)","v":0},{"$f":"SUM(D7:D13)","v":0},{"$f":"SUM(E7:E13)","v":0},{"$f":"SUM(F7:F13)","v":0},{"$f":"SUM(G7:G13)","v":0},null,{"$f":"IF(Licentie,SUM(C14:G14),0)","v":0}]
[]
[null,null,"Pin","Pin","Chip","Eurocard","Visa e.a."]
[{"$f":"A7","v":""},"Maandag"]
[{"$f":"A8","v":""},"Dinsdag"]
["","Woensdag"]
["","Donderdag"]
["","Vrijdag"]
["","Zaterdag"]
["","Zondag"]
[null,"Weektotaal",{"$f":"SUM(C17:C23)","v":0},{"$f":"SUM(D17:D23)","v":0},{"$f":"SUM(E17:E23)","v":0},{"$f":"SUM(F17:F23)","v":0},{"$f":"SUM(G17:G23)","v":0},{"$f":"IF(Licentie,SUM(C24:G24),0)","v":0}]
[]
[null,"Kadobonnen ingewisseld","( aangeslagen op kassa, goederen verlaten winkel)"]
[null,"Kadobonnen verkocht","(wordt niet aangeslagen op kassa)"]
[]
[null,"Bankstorting ","contant geld"]
[null,"Bankstorting ","contant geld"]
[null,"Bankstorting ","contant geld"]
[null,"Van bank opgenomen"]
[]
[null,"Overige uitgaven:","Omschrijving:","Aan wie:","Bedrag:"]
[]
[]
[]
[]
[]
[]
[]
[]
[]
[]
[]
[]
[]
[null,"Prive opname"]
[null,"Totaal uitgaven",null,null,{"$f":"SUM(E35:E48)","v":0},null,null,{"$f":"SUM(E49)","v":0}]
[]
[null,null,null,null,null,null,"kasverschillen"]
[]
[null,"Geteld kasgeld hier vermelden:",null,null,null,null,"Tellingen",{"$f":"IF(Licentie,SUM(H5:H52),0)","v":0},{"$f":"IF(Licentie,SUM(I5:I52),0)","v":0}]
[]
[]
[null,null,null,null,null,"Kassaldo","einde week:",null,{"$f":"SUM(I53-H53)","v":0}]
[]
[null,"Bijzonderheden:"]

{"sheet":"18","index":17,"n_rows":58,"n_cols":9,"rows_kept":58,"cut":false,"hidden":false,"merged":[]}
[null,{"$f":"KbTxt","v":"Kasboek"},"Weeknr: ",18,"Jaar :  ",{"$f":"jaar","v":0},"Winkel :",{"$f":"naam","v":0}]
[]
["Datum:","Omschrijving",null,null,null,null,null,"Uitgaven","Inkomsten"]
[]
[null,null,null,null,"Verkopen","Overige","Omschrij-","Beginsaldo",{"$f":"IF(Licentie,INDIRECT(\"'\"&D1-1&\"'!I56\"),0)","v":0}]
[null,null,"Kassa 1","Kassa 2","op rekening","inkomsten","ving"]
[{"$f":"IF(jr,\"\",INDIRECT(\"'\"&D1-1&\"'!A13\")+1)","v":""},"Omzet maandag"]
[{"$f":"IF(jr,\"\",A7+1)","v":""},"Omzet dinsdag"]
["","Omzet woensdag"]
["","Omzet donderdag"]
["","Omzet vrijdag"]
["","Omzet zaterdag"]
["","Omzet zondag"]
[null,"Weektotaal",{"$f":"SUM(C7:C13)","v":0},{"$f":"SUM(D7:D13)","v":0},{"$f":"SUM(E7:E13)","v":0},{"$f":"SUM(F7:F13)","v":0},{"$f":"SUM(G7:G13)","v":0},null,{"$f":"IF(Licentie,SUM(C14:G14),0)","v":0}]
[]
[null,null,"Pin","Pin","Chip","Eurocard","Visa e.a."]
[{"$f":"A7","v":""},"Maandag"]
[{"$f":"A8","v":""},"Dinsdag"]
["","Woensdag"]
["","Donderdag"]
["","Vrijdag"]
["","Zaterdag"]
["","Zondag"]
[null,"Weektotaal",{"$f":"SUM(C17:C23)","v":0},{"$f":"SUM(D17:D23)","v":0},{"$f":"SUM(E17:E23)","v":0},{"$f":"SUM(F17:F23)","v":0},{"$f":"SUM(G17:G23)","v":0},{"$f":"IF(Licentie,SUM(C24:G24),0)","v":0}]
[]
[null,"Kadobonnen ingewisseld","( aangeslagen op kassa, goederen verlaten winkel)"]
[null,"Kadobonnen verkocht","(wordt niet aangeslagen op kassa)"]
[]
[null,"Bankstorting ","contant geld"]
[null,"Bankstorting ","contant geld"]
[null,"Bankstorting ","contant geld"]
[null,"Van bank opgenomen"]
[]
[null,"Overige uitgaven:","Omschrijving:","Aan wie:","Bedrag:"]
[]
[]
[]
[]
[]
[]
[]
[]
[]
[]
[]
[]
[]
[null,"Prive opname"]
[null,"Totaal uitgaven",null,null,{"$f":"SUM(E35:E48)","v":0},null,null,{"$f":"SUM(E49)","v":0}]
[]
[null,null,null,null,null,null,"kasverschillen"]
[]
[null,"Geteld kasgeld hier vermelden:",null,null,null,null,"Tellingen",{"$f":"IF(Licentie,SUM(H5:H52),0)","v":0},{"$f":"IF(Licentie,SUM(I5:I52),0)","v":0}]
[]
[]
[null,null,null,null,null,"Kassaldo","einde week:",null,{"$f":"SUM(I53-H53)","v":0}]
[]
[null,"Bijzonderheden:"]

{"sheet":"19","index":18,"n_rows":58,"n_cols":9,"rows_kept":58,"cut":false,"hidden":false,"merged":[]}
[null,{"$f":"KbTxt","v":"Kasboek"},"Weeknr: ",19,"Jaar :  ",{"$f":"jaar","v":0},"Winkel :",{"$f":"naam","v":0}]
[]
["Datum:","Omschrijving",null,null,null,null,null,"Uitgaven","Inkomsten"]
[]
[null,null,null,null,"Verkopen","Overige","Omschrij-","Beginsaldo",{"$f":"IF(Licentie,INDIRECT(\"'\"&D1-1&\"'!I56\"),0)","v":0}]
[null,null,"Kassa 1","Kassa 2","op rekening","inkomsten","ving"]
[{"$f":"IF(jr,\"\",INDIRECT(\"'\"&D1-1&\"'!A13\")+1)","v":""},"Omzet maandag"]
[{"$f":"IF(jr,\"\",A7+1)","v":""},"Omzet dinsdag"]
["","Omzet woensdag"]
["","Omzet donderdag"]
["","Omzet vrijdag"]
["","Omzet zaterdag"]
["","Omzet zondag"]
[null,"Weektotaal",{"$f":"SUM(C7:C13)","v":0},{"$f":"SUM(D7:D13)","v":0},{"$f":"SUM(E7:E13)","v":0},{"$f":"SUM(F7:F13)","v":0},{"$f":"SUM(G7:G13)","v":0},null,{"$f":"IF(Licentie,SUM(C14:G14),0)","v":0}]
[]
[null,null,"Pin","Pin","Chip","Eurocard","Visa e.a."]
[{"$f":"A7","v":""},"Maandag"]
[{"$f":"A8","v":""},"Dinsdag"]
["","Woensdag"]
["","Donderdag"]
["","Vrijdag"]
["","Zaterdag"]
["","Zondag"]
[null,"Weektotaal",{"$f":"SUM(C17:C23)","v":0},{"$f":"SUM(D17:D23)","v":0},{"$f":"SUM(E17:E23)","v":0},{"$f":"SUM(F17:F23)","v":0},{"$f":"SUM(G17:G23)","v":0},{"$f":"IF(Licentie,SUM(C24:G24),0)","v":0}]
[]
[null,"Kadobonnen ingewisseld","( aangeslagen op kassa, goederen verlaten winkel)"]
[null,"Kadobonnen verkocht","(wordt niet aangeslagen op kassa)"]
[]
[null,"Bankstorting ","contant geld"]
[null,"Bankstorting ","contant geld"]
[null,"Bankstorting ","contant geld"]
[null,"Van bank opgenomen"]
[]
[null,"Overige uitgaven:","Omschrijving:","Aan wie:","Bedrag:"]
[]
[]
[]
[]
[]
[]
[]
[]
[]
[]
[]
[]
[]
[null,"Prive opname"]
[null,"Totaal uitgaven",null,null,{"$f":"SUM(E35:E48)","v":0},null,null,{"$f":"SUM(E49)","v":0}]
[]
[null,null,null,null,null,null,"kasverschillen"]
[]
[null,"Geteld kasgeld hier vermelden:",null,null,null,null,"Tellingen",{"$f":"IF(Licentie,SUM(H5:H52),0)","v":0},{"$f":"IF(Licentie,SUM(I5:I52),0)","v":0}]
[]
[]
[null,null,null,null,null,"Kassaldo","einde week:",null,{"$f":"SUM(I53-H53)","v":0}]
[]
[null,"Bijzonderheden:"]

{"sheet":"20","index":19,"n_rows":58,"n_cols":9,"rows_kept":58,"cut":false,"hidden":false,"merged":[]}
[null,{"$f":"KbTxt","v":"Kasboek"},"Weeknr: ",20,"Jaar :  ",{"$f":"jaar","v":0},"Winkel :",{"$f":"naam","v":0}]
[]
["Datum:","Omschrijving",null,null,null,null,null,"Uitgaven","Inkomsten"]
[]
[null,null,null,null,"Verkopen","Overige","Omschrij-","Beginsaldo",{"$f":"IF(Licentie,INDIRECT(\"'\"&D1-1&\"'!I56\"),0)","v":0}]
[null,null,"Kassa 1","Kassa 2","op rekening","inkomsten","ving"]
[{"$f":"IF(jr,\"\",INDIRECT(\"'\"&D1-1&\"'!A13\")+1)","v":""},"Omzet maandag"]
[{"$f":"IF(jr,\"\",A7+1)","v":""},"Omzet dinsdag"]
["","Omzet woensdag"]
["","Omzet donderdag"]
["","Omzet vrijdag"]
["","Omzet zaterdag"]
["","Omzet zondag"]
[null,"Weektotaal",{"$f":"SUM(C7:C13)","v":0},{"$f":"SUM(D7:D13)","v":0},{"$f":"SUM(E7:E13)","v":0},{"$f":"SUM(F7:F13)","v":0},{"$f":"SUM(G7:G13)","v":0},null,{"$f":"IF(Licentie,SUM(C14:G14),0)","v":0}]
[]
[null,null,"Pin","Pin","Chip","Eurocard","Visa e.a."]
[{"$f":"A7","v":""},"Maandag"]
[{"$f":"A8","v":""},"Dinsdag"]
["","Woensdag"]
["","Donderdag"]
["","Vrijdag"]
["","Zaterdag"]
["","Zondag"]
[null,"Weektotaal",{"$f":"SUM(C17:C23)","v":0},{"$f":"SUM(D17:D23)","v":0},{"$f":"SUM(E17:E23)","v":0},{"$f":"SUM(F17:F23)","v":0},{"$f":"SUM(G17:G23)","v":0},{"$f":"IF(Licentie,SUM(C24:G24),0)","v":0}]
[]
[null,"Kadobonnen ingewisseld","( aangeslagen op kassa, goederen verlaten winkel)"]
[null,"Kadobonnen verkocht","(wordt niet aangeslagen op kassa)"]
[]
[null,"Bankstorting ","contant geld"]
[null,"Bankstorting ","contant geld"]
[null,"Bankstorting ","contant geld"]
[null,"Van bank opgenomen"]
[]
[null,"Overige uitgaven:","Omschrijving:","Aan wie:","Bedrag:"]
[]
[]
[]
[]
[]
[]
[]
[]
[]
[]
[]
[]
[]
[null,"Prive opname"]
[null,"Totaal uitgaven",null,null,{"$f":"SUM(E35:E48)","v":0},null,null,{"$f":"SUM(E49)","v":0}]
[]
[null,null,null,null,null,null,"kasverschillen"]
[]
[null,"Geteld kasgeld hier vermelden:",null,null,null,null,"Tellingen",{"$f":"IF(Licentie,SUM(H5:H52),0)","v":0},{"$f":"IF(Licentie,SUM(I5:I52),0)","v":0}]
[]
[]
[null,null,null,null,null,"Kassaldo","einde week:",null,{"$f":"SUM(I53-H53)","v":0}]
[]
[null,"Bijzonderheden:"]

{"sheet":"21","index":20,"n_rows":58,"n_cols":9,"rows_kept":58,"cut":false,"hidden":false,"merged":[]}
[null,{"$f":"KbTxt","v":"Kasboek"},"Weeknr: ",21,"Jaar :  ",{"$f":"jaar","v":0},"Winkel :",{"$f":"naam","v":0}]
[]
["Datum:","Omschrijving",null,null,null,null,null,"Uitgaven","Inkomsten"]
[]
[null,null,null,null,"Verkopen","Overige","Omschrij-","Beginsaldo",{"$f":"IF(Licentie,INDIRECT(\"'\"&D1-1&\"'!I56\"),0)","v":0}]
[null,null,"Kassa 1","Kassa 2","op rekening","inkomsten","ving"]
[{"$f":"IF(jr,\"\",INDIRECT(\"'\"&D1-1&\"'!A13\")+1)","v":""},"Omzet maandag"]
[{"$f":"IF(jr,\"\",A7+1)","v":""},"Omzet dinsdag"]
["","Omzet woensdag"]
["","Omzet donderdag"]
["","Omzet vrijdag"]
["","Omzet zaterdag"]
["","Omzet zondag"]
[null,"Weektotaal",{"$f":"SUM(C7:C13)","v":0},{"$f":"SUM(D7:D13)","v":0},{"$f":"SUM(E7:E13)","v":0},{"$f":"SUM(F7:F13)","v":0},{"$f":"SUM(G7:G13)","v":0},null,{"$f":"IF(Licentie,SUM(C14:G14),0)","v":0}]
[]
[null,null,"Pin","Pin","Chip","Eurocard","Visa e.a."]
[{"$f":"A7","v":""},"Maandag"]
[{"$f":"A8","v":""},"Dinsdag"]
["","Woensdag"]
["","Donderdag"]
["","Vrijdag"]
["","Zaterdag"]
["","Zondag"]
[null,"Weektotaal",{"$f":"SUM(C17:C23)","v":0},{"$f":"SUM(D17:D23)","v":0},{"$f":"SUM(E17:E23)","v":0},{"$f":"SUM(F17:F23)","v":0},{"$f":"SUM(G17:G23)","v":0},{"$f":"IF(Licentie,SUM(C24:G24),0)","v":0}]
[]
[null,"Kadobonnen ingewisseld","( aangeslagen op kassa, goederen verlaten winkel)"]
[null,"Kadobonnen verkocht","(wordt niet aangeslagen op kassa)"]
[]
[null,"Bankstorting ","contant geld"]
[null,"Bankstorting ","contant geld"]
[null,"Bankstorting ","contant geld"]
[null,"Van bank opgenomen"]
[]
[null,"Overige uitgaven:","Omschrijving:","Aan wie:","Bedrag:"]
[]
[]
[]
[]
[]
[]
[]
[]
[]
[]
[]
[]
[]
[null,"Prive opname"]
[null,"Totaal uitgaven",null,null,{"$f":"SUM(E35:E48)","v":0},null,null,{"$f":"SUM(E49)","v":0}]
[]
[null,null,null,null,null,null,"kasverschillen"]
[]
[null,"Geteld kasgeld hier vermelden:",null,null,null,null,"Tellingen",{"$f":"IF(Licentie,SUM(H5:H52),0)","v":0},{"$f":"IF(Licentie,SUM(I5:I52),0)","v":0}]
[]
[]
[null,null,null,null,null,"Kassaldo","einde week:",null,{"$f":"SUM(I53-H53)","v":0}]
[]
[null,"Bijzonderheden:"]

{"sheet":"22","index":21,"n_rows":58,"n_cols":9,"rows_kept":58,"cut":false,"hidden":false,"merged":[]}
[null,{"$f":"KbTxt","v":"Kasboek"},"Weeknr: ",22,"Jaar :  ",{"$f":"jaar","v":0},"Winkel :",{"$f":"naam","v":0}]
[]
["Datum:","Omschrijving",null,null,null,null,null,"Uitgaven","Inkomsten"]
[]
[null,null,null,null,"Verkopen","Overige","Omschrij-","Beginsaldo",{"$f":"IF(Licentie,INDIRECT(\"'\"&D1-1&\"'!I56\"),0)","v":0}]
[null,null,"Kassa 1","Kassa 2","op rekening","inkomsten","ving"]
[{"$f":"IF(jr,\"\",INDIRECT(\"'\"&D1-1&\"'!A13\")+1)","v":""},"Omzet maandag"]
[{"$f":"IF(jr,\"\",A7+1)","v":""},"Omzet dinsdag"]
["","Omzet woensdag"]
["","Omzet donderdag"]
["","Omzet vrijdag"]
["","Omzet zaterdag"]
["","Omzet zondag"]
[null,"Weektotaal",{"$f":"SUM(C7:C13)","v":0},{"$f":"SUM(D7:D13)","v":0},{"$f":"SUM(E7:E13)","v":0},{"$f":"SUM(F7:F13)","v":0},{"$f":"SUM(G7:G13)","v":0},null,{"$f":"IF(Licentie,SUM(C14:G14),0)","v":0}]
[]
[null,null,"Pin","Pin","Chip","Eurocard","Visa e.a."]
[{"$f":"A7","v":""},"Maandag"]
[{"$f":"A8","v":""},"Dinsdag"]
["","Woensdag"]
["","Donderdag"]
["","Vrijdag"]
["","Zaterdag"]
["","Zondag"]
[null,"Weektotaal",{"$f":"SUM(C17:C23)","v":0},{"$f":"SUM(D17:D23)","v":0},{"$f":"SUM(E17:E23)","v":0},{"$f":"SUM(F17:F23)","v":0},{"$f":"SUM(G17:G23)","v":0},{"$f":"IF(Licentie,SUM(C24:G24),0)","v":0}]
[]
[null,"Kadobonnen ingewisseld","( aangeslagen op kassa, goederen verlaten winkel)"]
[null,"Kadobonnen verkocht","(wordt niet aangeslagen op kassa)"]
[]
[null,"Bankstorting ","contant geld"]
[null,"Bankstorting ","contant geld"]
[null,"Bankstorting ","contant geld"]
[null,"Van bank opgenomen"]
[]
[null,"Overige uitgaven:","Omschrijving:","Aan wie:","Bedrag:"]
[]
[]
[]
[]
[]
[]
[]
[]
[]
[]
[]
[]
[]
[null,"Prive opname"]
[null,"Totaal uitgaven",null,null,{"$f":"SUM(E35:E48)","v":0},null,null,{"$f":"SUM(E49)","v":0}]
[]
[null,null,null,null,null,null,"kasverschillen"]
[]
[null,"Geteld kasgeld hier vermelden:",null,null,null,null,"Tellingen",{"$f":"IF(Licentie,SUM(H5:H52),0)","v":0},{"$f":"IF(Licentie,SUM(I5:I52),0)","v":0}]
[]
[]
[null,null,null,null,null,"Kassaldo","einde week:",null,{"$f":"SUM(I53-H53)","v":0}]
[]
[null,"Bijzonderheden:"]

{"sheet":"23","index":22,"n_rows":58,"n_cols":9,"rows_kept":58,"cut":false,"hidden":false,"merged":[]}
[null,{"$f":"KbTxt","v":"Kasboek"},"Weeknr: ",23,"Jaar :  ",{"$f":"jaar","v":0},"Winkel :",{"$f":"naam","v":0}]
[]
["Datum:","Omschrijving",null,null,null,null,null,"Uitgaven","Inkomsten"]
[]
[null,null,null,null,"Verkopen","Overige","Omschrij-","Beginsaldo",{"$f":"IF(Licentie,INDIRECT(\"'\"&D1-1&\"'!I56\"),0)","v":0}]
[null,null,"Kassa 1","Kassa 2","op rekening","inkomsten","ving"]
[{"$f":"IF(jr,\"\",INDIRECT(\"'\"&D1-1&\"'!A13\")+1)","v":""},"Omzet maandag"]
[{"$f":"IF(jr,\"\",A7+1)","v":""},"Omzet dinsdag"]
["","Omzet woensdag"]
["","Omzet donderdag"]
["","Omzet vrijdag"]
["","Omzet zaterdag"]
["","Omzet zondag"]
[null,"Weektotaal",{"$f":"SUM(C7:C13)","v":0},{"$f":"SUM(D7:D13)","v":0},{"$f":"SUM(E7:E13)","v":0},{"$f":"SUM(F7:F13)","v":0},{"$f":"SUM(G7:G13)","v":0},null,{"$f":"IF(Licentie,SUM(C14:G14),0)","v":0}]
[]
[null,null,"Pin","Pin","Chip","Eurocard","Visa e.a."]
[{"$f":"A7","v":""},"Maandag"]
[{"$f":"A8","v":""},"Dinsdag"]
["","Woensdag"]
["","Donderdag"]
["","Vrijdag"]
["","Zaterdag"]
["","Zondag"]
[null,"Weektotaal",{"$f":"SUM(C17:C23)","v":0},{"$f":"SUM(D17:D23)","v":0},{"$f":"SUM(E17:E23)","v":0},{"$f":"SUM(F17:F23)","v":0},{"$f":"SUM(G17:G23)","v":0},{"$f":"IF(Licentie,SUM(C24:G24),0)","v":0}]
[]
[null,"Kadobonnen ingewisseld","( aangeslagen op kassa, goederen verlaten winkel)"]
[null,"Kadobonnen verkocht","(wordt niet aangeslagen op kassa)"]
[]
[null,"Bankstorting ","contant geld"]
[null,"Bankstorting ","contant geld"]
[null,"Bankstorting ","contant geld"]
[null,"Van bank opgenomen"]
[]
[null,"Overige uitgaven:","Omschrijving:","Aan wie:","Bedrag:"]
[]
[]
[]
[]
[]
[]
[]
[]
[]
[]
[]
[]
[]
[null,"Prive opname"]
[null,"Totaal uitgaven",null,null,{"$f":"SUM(E35:E48)","v":0},null,null,{"$f":"SUM(E49)","v":0}]
[]
[null,null,null,null,null,null,"kasverschillen"]
[]
[null,"Geteld kasgeld hier vermelden:",null,null,null,null,"Tellingen",{"$f":"IF(Licentie,SUM(H5:H52),0)","v":0},{"$f":"IF(Licentie,SUM(I5:I52),0)","v":0}]
[]
[]
[null,null,null,null,null,"Kassaldo","einde week:",null,{"$f":"SUM(I53-H53)","v":0}]
[]
[null,"Bijzonderheden:"]

{"sheet":"24","index":23,"n_rows":58,"n_cols":9,"rows_kept":58,"cut":false,"hidden":false,"merged":[]}
[null,{"$f":"KbTxt","v":"Kasboek"},"Weeknr: ",24,"Jaar :  ",{"$f":"jaar","v":0},"Winkel :",{"$f":"naam","v":0}]
[]
["Datum:","Omschrijving",null,null,null,null,null,"Uitgaven","Inkomsten"]
[]
[null,null,null,null,"Verkopen","Overige","Omschrij-","Beginsaldo",{"$f":"IF(Licentie,INDIRECT(\"'\"&D1-1&\"'!I56\"),0)","v":0}]
[null,null,"Kassa 1","Kassa 2","op rekening","inkomsten","ving"]
[{"$f":"IF(jr,\"\",INDIRECT(\"'\"&D1-1&\"'!A13\")+1)","v":""},"Omzet maandag"]
[{"$f":"IF(jr,\"\",A7+1)","v":""},"Omzet dinsdag"]
["","Omzet woensdag"]
["","Omzet donderdag"]
["","Omzet vrijdag"]
["","Omzet zaterdag"]
["","Omzet zondag"]
[null,"Weektotaal",{"$f":"SUM(C7:C13)","v":0},{"$f":"SUM(D7:D13)","v":0},{"$f":"SUM(E7:E13)","v":0},{"$f":"SUM(F7:F13)","v":0},{"$f":"SUM(G7:G13)","v":0},null,{"$f":"IF(Licentie,SUM(C14:G14),0)","v":0}]
[]
[null,null,"Pin","Pin","Chip","Eurocard","Visa e.a."]
[{"$f":"A7","v":""},"Maandag"]
[{"$f":"A8","v":""},"Dinsdag"]
["","Woensdag"]
["","Donderdag"]
["","Vrijdag"]
["","Zaterdag"]
["","Zondag"]
[null,"Weektotaal",{"$f":"SUM(C17:C23)","v":0},{"$f":"SUM(D17:D23)","v":0},{"$f":"SUM(E17:E23)","v":0},{"$f":"SUM(F17:F23)","v":0},{"$f":"SUM(G17:G23)","v":0},{"$f":"IF(Licentie,SUM(C24:G24),0)","v":0}]
[]
[null,"Kadobonnen ingewisseld","( aangeslagen op kassa, goederen verlaten winkel)"]
[null,"Kadobonnen verkocht","(wordt niet aangeslagen op kassa)"]
[]
[null,"Bankstorting ","contant geld"]
[null,"Bankstorting ","contant geld"]
[null,"Bankstorting ","contant geld"]
[null,"Van bank opgenomen"]
[]
[null,"Overige uitgaven:","Omschrijving:","Aan wie:","Bedrag:"]
[]
[]
[]
[]
[]
[]
[]
[]
[]
[]
[]
[]
[]
[null,"Prive opname"]
[null,"Totaal uitgaven",null,null,{"$f":"SUM(E35:E48)","v":0},null,null,{"$f":"SUM(E49)","v":0}]
[]
[null,null,null,null,null,null,"kasverschillen"]
[]
[null,"Geteld kasgeld hier vermelden:",null,null,null,null,"Tellingen",{"$f":"IF(Licentie,SUM(H5:H52),0)","v":0},{"$f":"IF(Licentie,SUM(I5:I52),0)","v":0}]
[]
[]
[null,null,null,null,null,"Kassaldo","einde week:",null,{"$f":"SUM(I53-H53)","v":0}]
[]
[null,"Bijzonderheden:"]

{"sheet":"25","index":24,"n_rows":58,"n_cols":9,"rows_kept":58,"cut":false,"hidden":false,"merged":[]}
[null,{"$f":"KbTxt","v":"Kasboek"},"Weeknr: ",25,"Jaar :  ",{"$f":"jaar","v":0},"Winkel :",{"$f":"naam","v":0}]
[]
["Datum:","Omschrijving",null,null,null,null,null,"Uitgaven","Inkomsten"]
[]
[null,null,null,null,"Verkopen","Overige","Omschrij-","Beginsaldo",{"$f":"IF(Licentie,INDIRECT(\"'\"&D1-1&\"'!I56\"),0)","v":0}]
[null,null,"Kassa 1","Kassa 2","op rekening","inkomsten","ving"]
[{"$f":"IF(jr,\"\",INDIRECT(\"'\"&D1-1&\"'!A13\")+1)","v":""},"Omzet maandag"]
[{"$f":"IF(jr,\"\",A7+1)","v":""},"Omzet dinsdag"]
["","Omzet woensdag"]
["","Omzet donderdag"]
["","Omzet vrijdag"]
["","Omzet zaterdag"]
["","Omzet zondag"]
[null,"Weektotaal",{"$f":"SUM(C7:C13)","v":0},{"$f":"SUM(D7:D13)","v":0},{"$f":"SUM(E7:E13)","v":0},{"$f":"SUM(F7:F13)","v":0},{"$f":"SUM(G7:G13)","v":0},null,{"$f":"IF(Licentie,SUM(C14:G14),0)","v":0}]
[]
[null,null,"Pin","Pin","Chip","Eurocard","Visa e.a."]
[{"$f":"A7","v":""},"Maandag"]
[{"$f":"A8","v":""},"Dinsdag"]
["","Woensdag"]
["","Donderdag"]
["","Vrijdag"]
["","Zaterdag"]
["","Zondag"]
[null,"Weektotaal",{"$f":"SUM(C17:C23)","v":0},{"$f":"SUM(D17:D23)","v":0},{"$f":"SUM(E17:E23)","v":0},{"$f":"SUM(F17:F23)","v":0},{"$f":"SUM(G17:G23)","v":0},{"$f":"IF(Licentie,SUM(C24:G24),0)","v":0}]
[]
[null,"Kadobonnen ingewisseld","( aangeslagen op kassa, goederen verlaten winkel)"]
[null,"Kadobonnen verkocht","(wordt niet aangeslagen op kassa)"]
[]
[null,"Bankstorting ","contant geld"]
[null,"Bankstorting ","contant geld"]
[null,"Bankstorting ","contant geld"]
[null,"Van bank opgenomen"]
[]
[null,"Overige uitgaven:","Omschrijving:","Aan wie:","Bedrag:"]
[]
[]
[]
[]
[]
[]
[]
[]
[]
[]
[]
[]
[]
[null,"Prive opname"]
[null,"Totaal uitgaven",null,null,{"$f":"SUM(E35:E48)","v":0},null,null,{"$f":"SUM(E49)","v":0}]
[]
[null,null,null,null,null,null,"kasverschillen"]
[]
[null,"Geteld kasgeld hier vermelden:",null,null,null,null,"Tellingen",{"$f":"IF(Licentie,SUM(H5:H52),0)","v":0},{"$f":"IF(Licentie,SUM(I5:I52),0)","v":0}]
[]
[]
[null,null,null,null,null,"Kassaldo","einde week:",null,{"$f":"SUM(I53-H53)","v":0}]
[]
[null,"Bijzonderheden:"]

{"sheet":"26","index":25,"n_rows":58,"n_cols":9,"rows_kept":58,"cut":false,"hidden":false,"merged":[]}
[null,{"$f":"KbTxt","v":"Kasboek"},"Weeknr: ",26,"Jaar :  ",{"$f":"jaar","v":0},"Winkel :",{"$f":"naam","v":0}]
[]
["Datum:","Omschrijving",null,null,null,null,null,"Uitgaven","Inkomsten"]
[]
[null,null,null,null,"Verkopen","Overige","Omschrij-","Beginsaldo",{"$f":"IF(Licentie,INDIRECT(\"'\"&D1-1&\"'!I56\"),0)","v":0}]
[null,null,"Kassa 1","Kassa 2","op rekening","inkomsten","ving"]
[{"$f":"IF(jr,\"\",INDIRECT(\"'\"&D1-1&\"'!A13\")+1)","v":""},"Omzet maandag"]
[{"$f":"IF(jr,\"\",A7+1)","v":""},"Omzet dinsdag"]
["","Omzet woensdag"]
["","Omzet donderdag"]
["","Omzet vrijdag"]
["","Omzet zaterdag"]
["","Omzet zondag"]
[null,"Weektotaal",{"$f":"SUM(C7:C13)","v":0},{"$f":"SUM(D7:D13)","v":0},{"$f":"SUM(E7:E13)","v":0},{"$f":"SUM(F7:F13)","v":0},{"$f":"SUM(G7:G13)","v":0},null,{"$f":"IF(Licentie,SUM(C14:G14),0)","v":0}]
[]
[null,null,"Pin","Pin","Chip","Eurocard","Visa e.a."]
[{"$f":"A7","v":""},"Maandag"]
[{"$f":"A8","v":""},"Dinsdag"]
["","Woensdag"]
["","Donderdag"]
["","Vrijdag"]
["","Zaterdag"]
["","Zondag"]
[null,"Weektotaal",{"$f":"SUM(C17:C23)","v":0},{"$f":"SUM(D17:D23)","v":0},{"$f":"SUM(E17:E23)","v":0},{"$f":"SUM(F17:F23)","v":0},{"$f":"SUM(G17:G23)","v":0},{"$f":"IF(Licentie,SUM(C24:G24),0)","v":0}]
[]
[null,"Kadobonnen ingewisseld","( aangeslagen op kassa, goederen verlaten winkel)"]
[null,"Kadobonnen verkocht","(wordt niet aangeslagen op kassa)"]
[]
[null,"Bankstorting ","contant geld"]
[null,"Bankstorting ","contant geld"]
[null,"Bankstorting ","contant geld"]
[null,"Van bank opgenomen"]
[]
[null,"Overige uitgaven:","Omschrijving:","Aan wie:","Bedrag:"]
[]
[]
[]
[]
[]
[]
[]
[]
[]
[]
[]
[]
[]
[null,"Prive opname"]
[null,"Totaal uitgaven",null,null,{"$f":"SUM(E35:E48)","v":0},null,null,{"$f":"SUM(E49)","v":0}]
[]
[null,null,null,null,null,null,"kasverschillen"]
[]
[null,"Geteld kasgeld hier vermelden:",null,null,null,null,"Tellingen",{"$f":"IF(Licentie,SUM(H5:H52),0)","v":0},{"$f":"IF(Licentie,SUM(I5:I52),0)","v":0}]
[]
[]
[null,null,null,null,null,"Kassaldo","einde week:",null,{"$f":"SUM(I53-H53)","v":0}]
[]
[null,"Bijzonderheden:"]

{"sheet":"27","index":26,"n_rows":58,"n_cols":9,"rows_kept":58,"cut":false,"hidden":false,"merged":[]}
[null,{"$f":"KbTxt","v":"Kasboek"},"Weeknr: ",27,"Jaar :  ",{"$f":"jaar","v":0},"Winkel :",{"$f":"naam","v":0}]
[]
["Datum:","Omschrijving",null,null,null,null,null,"Uitgaven","Inkomsten"]
[]
[null,null,null,null,"Verkopen","Overige","Omschrij-","Beginsaldo",{"$f":"IF(Licentie,INDIRECT(\"'\"&D1-1&\"'!I56\"),0)","v":0}]
[null,null,"Kassa 1","Kassa 2","op rekening","inkomsten","ving"]
[{"$f":"IF(jr,\"\",INDIRECT(\"'\"&D1-1&\"'!A13\")+1)","v":""},"Omzet maandag"]
[{"$f":"IF(jr,\"\",A7+1)","v":""},"Omzet dinsdag"]
["","Omzet woensdag"]
["","Omzet donderdag"]
["","Omzet vrijdag"]
["","Omzet zaterdag"]
["","Omzet zondag"]
[null,"Weektotaal",{"$f":"SUM(C7:C13)","v":0},{"$f":"SUM(D7:D13)","v":0},{"$f":"SUM(E7:E13)","v":0},{"$f":"SUM(F7:F13)","v":0},{"$f":"SUM(G7:G13)","v":0},null,{"$f":"IF(Licentie,SUM(C14:G14),0)","v":0}]
[]
[null,null,"Pin","Pin","Chip","Eurocard","Visa e.a."]
[{"$f":"A7","v":""},"Maandag"]
[{"$f":"A8","v":""},"Dinsdag"]
["","Woensdag"]
["","Donderdag"]
["","Vrijdag"]
["","Zaterdag"]
["","Zondag"]
[null,"Weektotaal",{"$f":"SUM(C17:C23)","v":0},{"$f":"SUM(D17:D23)","v":0},{"$f":"SUM(E17:E23)","v":0},{"$f":"SUM(F17:F23)","v":0},{"$f":"SUM(G17:G23)","v":0},{"$f":"IF(Licentie,SUM(C24:G24),0)","v":0}]
[]
[null,"Kadobonnen ingewisseld","( aangeslagen op kassa, goederen verlaten winkel)"]
[null,"Kadobonnen verkocht","(wordt niet aangeslagen op kassa)"]
[]
[null,"Bankstorting ","contant geld"]
[null,"Bankstorting ","contant geld"]
[null,"Bankstorting ","contant geld"]
[null,"Van bank opgenomen"]
[]
[null,"Overige uitgaven:","Omschrijving:","Aan wie:","Bedrag:"]
[]
[]
[]
[]
[]
[]
[]
[]
[]
[]
[]
[]
[]
[null,"Prive opname"]
[null,"Totaal uitgaven",null,null,{"$f":"SUM(E35:E48)","v":0},null,null,{"$f":"SUM(E49)","v":0}]
[]
[null,null,null,null,null,null,"kasverschillen"]
[]
[null,"Geteld kasgeld hier vermelden:",null,null,null,null,"Tellingen",{"$f":"IF(Licentie,SUM(H5:H52),0)","v":0},{"$f":"IF(Licentie,SUM(I5:I52),0)","v":0}]
[]
[]
[null,null,null,null,null,"Kassaldo","einde week:",null,{"$f":"SUM(I53-H53)","v":0}]
[]
[null,"Bijzonderheden:"]

{"sheet":"28","index":27,"n_rows":58,"n_cols":9,"rows_kept":58,"cut":false,"hidden":false,"merged":[]}
[null,{"$f":"KbTxt","v":"Kasboek"},"Weeknr: ",28,"Jaar :  ",{"$f":"jaar","v":0},"Winkel :",{"$f":"naam","v":0}]
[]
["Datum:","Omschrijving",null,null,null,null,null,"Uitgaven","Inkomsten"]
[]
[null,null,null,null,"Verkopen","Overige","Omschrij-","Beginsaldo",{"$f":"IF(Licentie,INDIRECT(\"'\"&D1-1&\"'!I56\"),0)","v":0}]
[null,null,"Kassa 1","Kassa 2","op rekening","inkomsten","ving"]
[{"$f":"IF(jr,\"\",INDIRECT(\"'\"&D1-1&\"'!A13\")+1)","v":""},"Omzet maandag"]
[{"$f":"IF(jr,\"\",A7+1)","v":""},"Omzet dinsdag"]
["","Omzet woensdag"]
["","Omzet donderdag"]
["","Omzet vrijdag"]
["","Omzet zaterdag"]
["","Omzet zondag"]
[null,"Weektotaal",{"$f":"SUM(C7:C13)","v":0},{"$f":"SUM(D7:D13)","v":0},{"$f":"SUM(E7:E13)","v":0},{"$f":"SUM(F7:F13)","v":0},{"$f":"SUM(G7:G13)","v":0},null,{"$f":"IF(Licentie,SUM(C14:G14),0)","v":0}]
[]
[null,null,"Pin","Pin","Chip","Eurocard","Visa e.a."]
[{"$f":"A7","v":""},"Maandag"]
[{"$f":"A8","v":""},"Dinsdag"]
["","Woensdag"]
["","Donderdag"]
["","Vrijdag"]
["","Zaterdag"]
["","Zondag"]
[null,"Weektotaal",{"$f":"SUM(C17:C23)","v":0},{"$f":"SUM(D17:D23)","v":0},{"$f":"SUM(E17:E23)","v":0},{"$f":"SUM(F17:F23)","v":0},{"$f":"SUM(G17:G23)","v":0},{"$f":"IF(Licentie,SUM(C24:G24),0)","v":0}]
[]
[null,"Kadobonnen ingewisseld","( aangeslagen op kassa, goederen verlaten winkel)"]
[null,"Kadobonnen verkocht","(wordt niet aangeslagen op kassa)"]
[]
[null,"Bankstorting ","contant geld"]
[null,"Bankstorting ","contant geld"]
[null,"Bankstorting ","contant geld"]
[null,"Van bank opgenomen"]
[]
[null,"Overige uitgaven:","Omschrijving:","Aan wie:","Bedrag:"]
[]
[]
[]
[]
[]
[]
[]
[]
[]
[]
[]
[]
[]
[null,"Prive opname"]
[null,"Totaal uitgaven",null,null,{"$f":"SUM(E35:E48)","v":0},null,null,{"$f":"SUM(E49)","v":0}]
[]
[null,null,null,null,null,null,"kasverschillen"]
[]
[null,"Geteld kasgeld hier vermelden:",null,null,null,null,"Tellingen",{"$f":"IF(Licentie,SUM(H5:H52),0)","v":0},{"$f":"IF(Licentie,SUM(I5:I52),0)","v":0}]
[]
[]
[null,null,null,null,null,"Kassaldo","einde week:",null,{"$f":"SUM(I53-H53)","v":0}]
[]
[null,"Bijzonderheden:"]

{"sheet":"29","index":28,"n_rows":58,"n_cols":9,"rows_kept":58,"cut":false,"hidden":false,"merged":[]}
[null,{"$f":"KbTxt","v":"Kasboek"},"Weeknr: ",29,"Jaar :  ",{"$f":"jaar","v":0},"Winkel :",{"$f":"naam","v":0}]
[]
["Datum:","Omschrijving",null,null,null,null,null,"Uitgaven","Inkomsten"]
[]
[null,null,null,null,"Verkopen","Overige","Omschrij-","Beginsaldo",{"$f":"IF(Licentie,INDIRECT(\"'\"&D1-1&\"'!I56\"),0)","v":0}]
[null,null,"Kassa 1","Kassa 2","op rekening","inkomsten","ving"]
[{"$f":"IF(jr,\"\",INDIRECT(\"'\"&D1-1&\"'!A13\")+1)","v":""},"Omzet maandag"]
[{"$f":"IF(jr,\"\",A7+1)","v":""},"Omzet dinsdag"]
["","Omzet woensdag"]
["","Omzet donderdag"]
["","Omzet vrijdag"]
["","Omzet zaterdag"]
["","Omzet zondag"]
[null,"Weektotaal",{"$f":"SUM(C7:C13)","v":0},{"$f":"SUM(D7:D13)","v":0},{"$f":"SUM(E7:E13)","v":0},{"$f":"SUM(F7:F13)","v":0},{"$f":"SUM(G7:G13)","v":0},null,{"$f":"IF(Licentie,SUM(C14:G14),0)","v":0}]
[]
[null,null,"Pin","Pin","Chip","Eurocard","Visa e.a."]
[{"$f":"A7","v":""},"Maandag"]
[{"$f":"A8","v":""},"Dinsdag"]
["","Woensdag"]
["","Donderdag"]
["","Vrijdag"]
["","Zaterdag"]
["","Zondag"]
[null,"Weektotaal",{"$f":"SUM(C17:C23)","v":0},{"$f":"SUM(D17:D23)","v":0},{"$f":"SUM(E17:E23)","v":0},{"$f":"SUM(F17:F23)","v":0},{"$f":"SUM(G17:G23)","v":0},{"$f":"IF(Licentie,SUM(C24:G24),0)","v":0}]
[]
[null,"Kadobonnen ingewisseld","( aangeslagen op kassa, goederen verlaten winkel)"]
[null,"Kadobonnen verkocht","(wordt niet aangeslagen op kassa)"]
[]
[null,"Bankstorting ","contant geld"]
[null,"Bankstorting ","contant geld"]
[null,"Bankstorting ","contant geld"]
[null,"Van bank opgenomen"]
[]
[null,"Overige uitgaven:","Omschrijving:","Aan wie:","Bedrag:"]
[]
[]
[]
[]
[]
[]
[]
[]
[]
[]
[]
[]
[]
[null,"Prive opname"]
[null,"Totaal uitgaven",null,null,{"$f":"SUM(E35:E48)","v":0},null,null,{"$f":"SUM(E49)","v":0}]
[]
[null,null,null,null,null,null,"kasverschillen"]
[]
[null,"Geteld kasgeld hier vermelden:",null,null,null,null,"Tellingen",{"$f":"IF(Licentie,SUM(H5:H52),0)","v":0},{"$f":"IF(Licentie,SUM(I5:I52),0)","v":0}]
[]
[]
[null,null,null,null,null,"Kassaldo","einde week:",null,{"$f":"SUM(I53-H53)","v":0}]
[]
[null,"Bijzonderheden:"]

{"sheet":"30","index":29,"n_rows":58,"n_cols":9,"rows_kept":58,"cut":false,"hidden":false,"merged":[]}
[null,{"$f":"KbTxt","v":"Kasboek"},"Weeknr: ",30,"Jaar :  ",{"$f":"jaar","v":0},"Winkel :",{"$f":"naam","v":0}]
[]
["Datum:","Omschrijving",null,null,null,null,null,"Uitgaven","Inkomsten"]
[]
[null,null,null,null,"Verkopen","Overige","Omschrij-","Beginsaldo",{"$f":"IF(Licentie,INDIRECT(\"'\"&D1-1&\"'!I56\"),0)","v":0}]
[null,null,"Kassa 1","Kassa 2","op rekening","inkomsten","ving"]
[{"$f":"IF(jr,\"\",INDIRECT(\"'\"&D1-1&\"'!A13\")+1)","v":""},"Omzet maandag"]
[{"$f":"IF(jr,\"\",A7+1)","v":""},"Omzet dinsdag"]
["","Omzet woensdag"]
["","Omzet donderdag"]
["","Omzet vrijdag"]
["","Omzet zaterdag"]
["","Omzet zondag"]
[null,"Weektotaal",{"$f":"SUM(C7:C13)","v":0},{"$f":"SUM(D7:D13)","v":0},{"$f":"SUM(E7:E13)","v":0},{"$f":"SUM(F7:F13)","v":0},{"$f":"SUM(G7:G13)","v":0},null,{"$f":"IF(Licentie,SUM(C14:G14),0)","v":0}]
[]
[null,null,"Pin","Pin","Chip","Eurocard","Visa e.a."]
[{"$f":"A7","v":""},"Maandag"]
[{"$f":"A8","v":""},"Dinsdag"]
["","Woensdag"]
["","Donderdag"]
["","Vrijdag"]
["","Zaterdag"]
["","Zondag"]
[null,"Weektotaal",{"$f":"SUM(C17:C23)","v":0},{"$f":"SUM(D17:D23)","v":0},{"$f":"SUM(E17:E23)","v":0},{"$f":"SUM(F17:F23)","v":0},{"$f":"SUM(G17:G23)","v":0},{"$f":"IF(Licentie,SUM(C24:G24),0)","v":0}]
[]
[null,"Kadobonnen ingewisseld","( aangeslagen op kassa, goederen verlaten winkel)"]
[null,"Kadobonnen verkocht","(wordt niet aangeslagen op kassa)"]
[]
[null,"Bankstorting ","contant geld"]
[null,"Bankstorting ","contant geld"]
[null,"Bankstorting ","contant geld"]
[null,"Van bank opgenomen"]
[]
[null,"Overige uitgaven:","Omschrijving:","Aan wie:","Bedrag:"]
[]
[]
[]
[]
[]
[]
[]
[]
[]
[]
[]
[]
[]
[null,"Prive opname"]
[null,"Totaal uitgaven",null,null,{"$f":"SUM(E35:E48)","v":0},null,null,{"$f":"SUM(E49)","v":0}]
[]
[null,null,null,null,null,null,"kasverschillen"]
[]
[null,"Geteld kasgeld hier vermelden:",null,null,null,null,"Tellingen",{"$f":"IF(Licentie,SUM(H5:H52),0)","v":0},{"$f":"IF(Licentie,SUM(I5:I52),0)","v":0}]
[]
[]
[null,null,null,null,null,"Kassaldo","einde week:",null,{"$f":"SUM(I53-H53)","v":0}]
[]
[null,"Bijzonderheden:"]

{"sheet":"31","index":30,"n_rows":58,"n_cols":9,"rows_kept":58,"cut":false,"hidden":false,"merged":[]}
[null,{"$f":"KbTxt","v":"Kasboek"},"Weeknr: ",31,"Jaar :  ",{"$f":"jaar","v":0},"Winkel :",{"$f":"naam","v":0}]
[]
["Datum:","Omschrijving",null,null,null,null,null,"Uitgaven","Inkomsten"]
[]
[null,null,null,null,"Verkopen","Overige","Omschrij-","Beginsaldo",{"$f":"IF(Licentie,INDIRECT(\"'\"&D1-1&\"'!I56\"),0)","v":0}]
[null,null,"Kassa 1","Kassa 2","op rekening","inkomsten","ving"]
[{"$f":"IF(jr,\"\",INDIRECT(\"'\"&D1-1&\"'!A13\")+1)","v":""},"Omzet maandag"]
[{"$f":"IF(jr,\"\",A7+1)","v":""},"Omzet dinsdag"]
["","Omzet woensdag"]
["","Omzet donderdag"]
["","Omzet vrijdag"]
["","Omzet zaterdag"]
["","Omzet zondag"]
[null,"Weektotaal",{"$f":"SUM(C7:C13)","v":0},{"$f":"SUM(D7:D13)","v":0},{"$f":"SUM(E7:E13)","v":0},{"$f":"SUM(F7:F13)","v":0},{"$f":"SUM(G7:G13)","v":0},null,{"$f":"IF(Licentie,SUM(C14:G14),0)","v":0}]
[]
[null,null,"Pin","Pin","Chip","Eurocard","Visa e.a."]
[{"$f":"A7","v":""},"Maandag"]
[{"$f":"A8","v":""},"Dinsdag"]
["","Woensdag"]
["","Donderdag"]
["","Vrijdag"]
["","Zaterdag"]
["","Zondag"]
[null,"Weektotaal",{"$f":"SUM(C17:C23)","v":0},{"$f":"SUM(D17:D23)","v":0},{"$f":"SUM(E17:E23)","v":0},{"$f":"SUM(F17:F23)","v":0},{"$f":"SUM(G17:G23)","v":0},{"$f":"IF(Licentie,SUM(C24:G24),0)","v":0}]
[]
[null,"Kadobonnen ingewisseld","( aangeslagen op kassa, goederen verlaten winkel)"]
[null,"Kadobonnen verkocht","(wordt niet aangeslagen op kassa)"]
[]
[null,"Bankstorting ","contant geld"]
[null,"Bankstorting ","contant geld"]
[null,"Bankstorting ","contant geld"]
[null,"Van bank opgenomen"]
[]
[null,"Overige uitgaven:","Omschrijving:","Aan wie:","Bedrag:"]
[]
[]
[]
[]
[]
[]
[]
[]
[]
[]
[]
[]
[]
[null,"Prive opname"]
[null,"Totaal uitgaven",null,null,{"$f":"SUM(E35:E48)","v":0},null,null,{"$f":"SUM(E49)","v":0}]
[]
[null,null,null,null,null,null,"kasverschillen"]
[]
[null,"Geteld kasgeld hier vermelden:",null,null,null,null,"Tellingen",{"$f":"IF(Licentie,SUM(H5:H52),0)","v":0},{"$f":"IF(Licentie,SUM(I5:I52),0)","v":0}]
[]
[]
[null,null,null,null,null,"Kassaldo","einde week:",null,{"$f":"SUM(I53-H53)","v":0}]
[]
[null,"Bijzonderheden:"]

{"sheet":"32","index":31,"n_rows":58,"n_cols":9,"rows_kept":58,"cut":false,"hidden":false,"merged":[]}
[null,{"$f":"KbTxt","v":"Kasboek"},"Weeknr: ",32,"Jaar :  ",{"$f":"jaar","v":0},"Winkel :",{"$f":"naam","v":0}]
[]
["Datum:","Omschrijving",null,null,null,null,null,"Uitgaven","Inkomsten"]
[]
[null,null,null,null,"Verkopen","Overige","Omschrij-","Beginsaldo",{"$f":"IF(Licentie,INDIRECT(\"'\"&D1-1&\"'!I56\"),0)","v":0}]
[null,null,"Kassa 1","Kassa 2","op rekening","inkomsten","ving"]
[{"$f":"IF(jr,\"\",INDIRECT(\"'\"&D1-1&\"'!A13\")+1)","v":""},"Omzet maandag"]
[{"$f":"IF(jr,\"\",A7+1)","v":""},"Omzet dinsdag"]
["","Omzet woensdag"]
["","Omzet donderdag"]
["","Omzet vrijdag"]
["","Omzet zaterdag"]
["","Omzet zondag"]
[null,"Weektotaal",{"$f":"SUM(C7:C13)","v":0},{"$f":"SUM(D7:D13)","v":0},{"$f":"SUM(E7:E13)","v":0},{"$f":"SUM(F7:F13)","v":0},{"$f":"SUM(G7:G13)","v":0},null,{"$f":"IF(Licentie,SUM(C14:G14),0)","v":0}]
[]
[null,null,"Pin","Pin","Chip","Eurocard","Visa e.a."]
[{"$f":"A7","v":""},"Maandag"]
[{"$f":"A8","v":""},"Dinsdag"]
["","Woensdag"]
["","Donderdag"]
["","Vrijdag"]
["","Zaterdag"]
["","Zondag"]
[null,"Weektotaal",{"$f":"SUM(C17:C23)","v":0},{"$f":"SUM(D17:D23)","v":0},{"$f":"SUM(E17:E23)","v":0},{"$f":"SUM(F17:F23)","v":0},{"$f":"SUM(G17:G23)","v":0},{"$f":"IF(Licentie,SUM(C24:G24),0)","v":0}]
[]
[null,"Kadobonnen ingewisseld","( aangeslagen op kassa, goederen verlaten winkel)"]
[null,"Kadobonnen verkocht","(wordt niet aangeslagen op kassa)"]
[]
[null,"Bankstorting ","contant geld"]
[null,"Bankstorting ","contant geld"]
[null,"Bankstorting ","contant geld"]
[null,"Van bank opgenomen"]
[]
[null,"Overige uitgaven:","Omschrijving:","Aan wie:","Bedrag:"]
[]
[]
[]
[]
[]
[]
[]
[]
[]
[]
[]
[]
[]
[null,"Prive opname"]
[null,"Totaal uitgaven",null,null,{"$f":"SUM(E35:E48)","v":0},null,null,{"$f":"SUM(E49)","v":0}]
[]
[null,null,null,null,null,null,"kasverschillen"]
[]
[null,"Geteld kasgeld hier vermelden:",null,null,null,null,"Tellingen",{"$f":"IF(Licentie,SUM(H5:H52),0)","v":0},{"$f":"IF(Licentie,SUM(I5:I52),0)","v":0}]
[]
[]
[null,null,null,null,null,"Kassaldo","einde week:",null,{"$f":"SUM(I53-H53)","v":0}]
[]
[null,"Bijzonderheden:"]

{"sheet":"33","index":32,"n_rows":58,"n_cols":9,"rows_kept":58,"cut":false,"hidden":false,"merged":[]}
[null,{"$f":"KbTxt","v":"Kasboek"},"Weeknr: ",33,"Jaar :  ",{"$f":"jaar","v":0},"Winkel :",{"$f":"naam","v":0}]
[]
["Datum:","Omschrijving",null,null,null,null,null,"Uitgaven","Inkomsten"]
[]
[null,null,null,null,"Verkopen","Overige","Omschrij-","Beginsaldo",{"$f":"IF(Licentie,INDIRECT(\"'\"&D1-1&\"'!I56\"),0)","v":0}]
[null,null,"Kassa 1","Kassa 2","op rekening","inkomsten","ving"]
[{"$f":"IF(jr,\"\",INDIRECT(\"'\"&D1-1&\"'!A13\")+1)","v":""},"Omzet maandag"]
[{"$f":"IF(jr,\"\",A7+1)","v":""},"Omzet dinsdag"]
["","Omzet woensdag"]
["","Omzet donderdag"]
["","Omzet vrijdag"]
["","Omzet zaterdag"]
["","Omzet zondag"]
[null,"Weektotaal",{"$f":"SUM(C7:C13)","v":0},{"$f":"SUM(D7:D13)","v":0},{"$f":"SUM(E7:E13)","v":0},{"$f":"SUM(F7:F13)","v":0},{"$f":"SUM(G7:G13)","v":0},null,{"$f":"IF(Licentie,SUM(C14:G14),0)","v":0}]
[]
[null,null,"Pin","Pin","Chip","Eurocard","Visa e.a."]
[{"$f":"A7","v":""},"Maandag"]
[{"$f":"A8","v":""},"Dinsdag"]
["","Woensdag"]
["","Donderdag"]
["","Vrijdag"]
["","Zaterdag"]
["","Zondag"]
[null,"Weektotaal",{"$f":"SUM(C17:C23)","v":0},{"$f":"SUM(D17:D23)","v":0},{"$f":"SUM(E17:E23)","v":0},{"$f":"SUM(F17:F23)","v":0},{"$f":"SUM(G17:G23)","v":0},{"$f":"IF(Licentie,SUM(C24:G24),0)","v":0}]
[]
[null,"Kadobonnen ingewisseld","( aangeslagen op kassa, goederen verlaten winkel)"]
[null,"Kadobonnen verkocht","(wordt niet aangeslagen op kassa)"]
[]
[null,"Bankstorting ","contant geld"]
[null,"Bankstorting ","contant geld"]
[null,"Bankstorting ","contant geld"]
[null,"Van bank opgenomen"]
[]
[null,"Overige uitgaven:","Omschrijving:","Aan wie:","Bedrag:"]
[]
[]
[]
[]
[]
[]
[]
[]
[]
[]
[]
[]
[]
[null,"Prive opname"]
[null,"Totaal uitgaven",null,null,{"$f":"SUM(E35:E48)","v":0},null,null,{"$f":"SUM(E49)","v":0}]
[]
[null,null,null,null,null,null,"kasverschillen"]
[]
[null,"Geteld kasgeld hier vermelden:",null,null,null,null,"Tellingen",{"$f":"IF(Licentie,SUM(H5:H52),0)","v":0},{"$f":"IF(Licentie,SUM(I5:I52),0)","v":0}]
[]
[]
[null,null,null,null,null,"Kassaldo","einde week:",null,{"$f":"SUM(I53-H53)","v":0}]
[]
[null,"Bijzonderheden:"]

{"sheet":"34","index":33,"n_rows":58,"n_cols":9,"rows_kept":58,"cut":false,"hidden":false,"merged":[]}
[null,{"$f":"KbTxt","v":"Kasboek"},"Weeknr: ",34,"Jaar :  ",{"$f":"jaar","v":0},"Winkel :",{"$f":"naam","v":0}]
[]
["Datum:","Omschrijving",null,null,null,null,null,"Uitgaven","Inkomsten"]
[]
[null,null,null,null,"Verkopen","Overige","Omschrij-","Beginsaldo",{"$f":"IF(Licentie,INDIRECT(\"'\"&D1-1&\"'!I56\"),0)","v":0}]
[null,null,"Kassa 1","Kassa 2","op rekening","inkomsten","ving"]
[{"$f":"IF(jr,\"\",INDIRECT(\"'\"&D1-1&\"'!A13\")+1)","v":""},"Omzet maandag"]
[{"$f":"IF(jr,\"\",A7+1)","v":""},"Omzet dinsdag"]
["","Omzet woensdag"]
["","Omzet donderdag"]
["","Omzet vrijdag"]
["","Omzet zaterdag"]
["","Omzet zondag"]
[null,"Weektotaal",{"$f":"SUM(C7:C13)","v":0},{"$f":"SUM(D7:D13)","v":0},{"$f":"SUM(E7:E13)","v":0},{"$f":"SUM(F7:F13)","v":0},{"$f":"SUM(G7:G13)","v":0},null,{"$f":"IF(Licentie,SUM(C14:G14),0)","v":0}]
[]
[null,null,"Pin","Pin","Chip","Eurocard","Visa e.a."]
[{"$f":"A7","v":""},"Maandag"]
[{"$f":"A8","v":""},"Dinsdag"]
["","Woensdag"]
["","Donderdag"]
["","Vrijdag"]
["","Zaterdag"]
["","Zondag"]
[null,"Weektotaal",{"$f":"SUM(C17:C23)","v":0},{"$f":"SUM(D17:D23)","v":0},{"$f":"SUM(E17:E23)","v":0},{"$f":"SUM(F17:F23)","v":0},{"$f":"SUM(G17:G23)","v":0},{"$f":"IF(Licentie,SUM(C24:G24),0)","v":0}]
[]
[null,"Kadobonnen ingewisseld","( aangeslagen op kassa, goederen verlaten winkel)"]
[null,"Kadobonnen verkocht","(wordt niet aangeslagen op kassa)"]
[]
[null,"Bankstorting ","contant geld"]
[null,"Bankstorting ","contant geld"]
[null,"Bankstorting ","contant geld"]
[null,"Van bank opgenomen"]
[]
[null,"Overige uitgaven:","Omschrijving:","Aan wie:","Bedrag:"]
[]
[]
[]
[]
[]
[]
[]
[]
[]
[]
[]
[]
[]
[null,"Prive opname"]
[null,"Totaal uitgaven",null,null,{"$f":"SUM(E35:E48)","v":0},null,null,{"$f":"SUM(E49)","v":0}]
[]
[null,null,null,null,null,null,"kasverschillen"]
[]
[null,"Geteld kasgeld hier vermelden:",null,null,null,null,"Tellingen",{"$f":"IF(Licentie,SUM(H5:H52),0)","v":0},{"$f":"IF(Licentie,SUM(I5:I52),0)","v":0}]
[]
[]
[null,null,null,null,null,"Kassaldo","einde week:",null,{"$f":"SUM(I53-H53)","v":0}]
[]
[null,"Bijzonderheden:"]

{"sheet":"35","index":34,"n_rows":58,"n_cols":9,"rows_kept":58,"cut":false,"hidden":false,"merged":[]}
[null,{"$f":"KbTxt","v":"Kasboek"},"Weeknr: ",35,"Jaar :  ",{"$f":"jaar","v":0},"Winkel :",{"$f":"naam","v":0}]
[]
["Datum:","Omschrijving",null,null,null,null,null,"Uitgaven","Inkomsten"]
[]
[null,null,null,null,"Verkopen","Overige","Omschrij-","Beginsaldo",{"$f":"IF(Licentie,INDIRECT(\"'\"&D1-1&\"'!I56\"),0)","v":0}]
[null,null,"Kassa 1","Kassa 2","op rekening","inkomsten","ving"]
[{"$f":"IF(jr,\"\",INDIRECT(\"'\"&D1-1&\"'!A13\")+1)","v":""},"Omzet maandag"]
[{"$f":"IF(jr,\"\",A7+1)","v":""},"Omzet dinsdag"]
["","Omzet woensdag"]
["","Omzet donderdag"]
["","Omzet vrijdag"]
["","Omzet zaterdag"]
["","Omzet zondag"]
[null,"Weektotaal",{"$f":"SUM(C7:C13)","v":0},{"$f":"SUM(D7:D13)","v":0},{"$f":"SUM(E7:E13)","v":0},{"$f":"SUM(F7:F13)","v":0},{"$f":"SUM(G7:G13)","v":0},null,{"$f":"IF(Licentie,SUM(C14:G14),0)","v":0}]
[]
[null,null,"Pin","Pin","Chip","Eurocard","Visa e.a."]
[{"$f":"A7","v":""},"Maandag"]
[{"$f":"A8","v":""},"Dinsdag"]
["","Woensdag"]
["","Donderdag"]
["","Vrijdag"]
["","Zaterdag"]
["","Zondag"]
[null,"Weektotaal",{"$f":"SUM(C17:C23)","v":0},{"$f":"SUM(D17:D23)","v":0},{"$f":"SUM(E17:E23)","v":0},{"$f":"SUM(F17:F23)","v":0},{"$f":"SUM(G17:G23)","v":0},{"$f":"IF(Licentie,SUM(C24:G24),0)","v":0}]
[]
[null,"Kadobonnen ingewisseld","( aangeslagen op kassa, goederen verlaten winkel)"]
[null,"Kadobonnen verkocht","(wordt niet aangeslagen op kassa)"]
[]
[null,"Bankstorting ","contant geld"]
[null,"Bankstorting ","contant geld"]
[null,"Bankstorting ","contant geld"]
[null,"Van bank opgenomen"]
[]
[null,"Overige uitgaven:","Omschrijving:","Aan wie:","Bedrag:"]
[]
[]
[]
[]
[]
[]
[]
[]
[]
[]
[]
[]
[]
[null,"Prive opname"]
[null,"Totaal uitgaven",null,null,{"$f":"SUM(E35:E48)","v":0},null,null,{"$f":"SUM(E49)","v":0}]
[]
[null,null,null,null,null,null,"kasverschillen"]
[]
[null,"Geteld kasgeld hier vermelden:",null,null,null,null,"Tellingen",{"$f":"IF(Licentie,SUM(H5:H52),0)","v":0},{"$f":"IF(Licentie,SUM(I5:I52),0)","v":0}]
[]
[]
[null,null,null,null,null,"Kassaldo","einde week:",null,{"$f":"SUM(I53-H53)","v":0}]
[]
[null,"Bijzonderheden:"]

{"sheet":"36","index":35,"n_rows":58,"n_cols":9,"rows_kept":58,"cut":false,"hidden":false,"merged":[]}
[null,{"$f":"KbTxt","v":"Kasboek"},"Weeknr: ",36,"Jaar :  ",{"$f":"jaar","v":0},"Winkel :",{"$f":"naam","v":0}]
[]
["Datum:","Omschrijving",null,null,null,null,null,"Uitgaven","Inkomsten"]
[]
[null,null,null,null,"Verkopen","Overige","Omschrij-","Beginsaldo",{"$f":"IF(Licentie,INDIRECT(\"'\"&D1-1&\"'!I56\"),0)","v":0}]
[null,null,"Kassa 1","Kassa 2","op rekening","inkomsten","ving"]
[{"$f":"IF(jr,\"\",INDIRECT(\"'\"&D1-1&\"'!A13\")+1)","v":""},"Omzet maandag"]
[{"$f":"IF(jr,\"\",A7+1)","v":""},"Omzet dinsdag"]
["","Omzet woensdag"]
["","Omzet donderdag"]
["","Omzet vrijdag"]
["","Omzet zaterdag"]
["","Omzet zondag"]
[null,"Weektotaal",{"$f":"SUM(C7:C13)","v":0},{"$f":"SUM(D7:D13)","v":0},{"$f":"SUM(E7:E13)","v":0},{"$f":"SUM(F7:F13)","v":0},{"$f":"SUM(G7:G13)","v":0},null,{"$f":"IF(Licentie,SUM(C14:G14),0)","v":0}]
[]
[null,null,"Pin","Pin","Chip","Eurocard","Visa e.a."]
[{"$f":"A7","v":""},"Maandag"]
[{"$f":"A8","v":""},"Dinsdag"]
["","Woensdag"]
["","Donderdag"]
["","Vrijdag"]
["","Zaterdag"]
["","Zondag"]
[null,"Weektotaal",{"$f":"SUM(C17:C23)","v":0},{"$f":"SUM(D17:D23)","v":0},{"$f":"SUM(E17:E23)","v":0},{"$f":"SUM(F17:F23)","v":0},{"$f":"SUM(G17:G23)","v":0},{"$f":"IF(Licentie,SUM(C24:G24),0)","v":0}]
[]
[null,"Kadobonnen ingewisseld","( aangeslagen op kassa, goederen verlaten winkel)"]
[null,"Kadobonnen verkocht","(wordt niet aangeslagen op kassa)"]
[]
[null,"Bankstorting ","contant geld"]
[null,"Bankstorting ","contant geld"]
[null,"Bankstorting ","contant geld"]
[null,"Van bank opgenomen"]
[]
[null,"Overige uitgaven:","Omschrijving:","Aan wie:","Bedrag:"]
[]
[]
[]
[]
[]
[]
[]
[]
[]
[]
[]
[]
[]
[null,"Prive opname"]
[null,"Totaal uitgaven",null,null,{"$f":"SUM(E35:E48)","v":0},null,null,{"$f":"SUM(E49)","v":0}]
[]
[null,null,null,null,null,null,"kasverschillen"]
[]
[null,"Geteld kasgeld hier vermelden:",null,null,null,null,"Tellingen",{"$f":"IF(Licentie,SUM(H5:H52),0)","v":0},{"$f":"IF(Licentie,SUM(I5:I52),0)","v":0}]
[]
[]
[null,null,null,null,null,"Kassaldo","einde week:",null,{"$f":"SUM(I53-H53)","v":0}]
[]
[null,"Bijzonderheden:"]

{"sheet":"37","index":36,"n_rows":58,"n_cols":9,"rows_kept":58,"cut":false,"hidden":false,"merged":[]}
[null,{"$f":"KbTxt","v":"Kasboek"},"Weeknr: ",37,"Jaar :  ",{"$f":"jaar","v":0},"Winkel :",{"$f":"naam","v":0}]
[]
["Datum:","Omschrijving",null,null,null,null,null,"Uitgaven","Inkomsten"]
[]
[null,null,null,null,"Verkopen","Overige","Omschrij-","Beginsaldo",{"$f":"IF(Licentie,INDIRECT(\"'\"&D1-1&\"'!I56\"),0)","v":0}]
[null,null,"Kassa 1","Kassa 2","op rekening","inkomsten","ving"]
[{"$f":"IF(jr,\"\",INDIRECT(\"'\"&D1-1&\"'!A13\")+1)","v":""},"Omzet maandag"]
[{"$f":"IF(jr,\"\",A7+1)","v":""},"Omzet dinsdag"]
["","Omzet woensdag"]
["","Omzet donderdag"]
["","Omzet vrijdag"]
["","Omzet zaterdag"]
["","Omzet zondag"]
[null,"Weektotaal",{"$f":"SUM(C7:C13)","v":0},{"$f":"SUM(D7:D13)","v":0},{"$f":"SUM(E7:E13)","v":0},{"$f":"SUM(F7:F13)","v":0},{"$f":"SUM(G7:G13)","v":0},null,{"$f":"IF(Licentie,SUM(C14:G14),0)","v":0}]
[]
[null,null,"Pin","Pin","Chip","Eurocard","Visa e.a."]
[{"$f":"A7","v":""},"Maandag"]
[{"$f":"A8","v":""},"Dinsdag"]
["","Woensdag"]
["","Donderdag"]
["","Vrijdag"]
["","Zaterdag"]
["","Zondag"]
[null,"Weektotaal",{"$f":"SUM(C17:C23)","v":0},{"$f":"SUM(D17:D23)","v":0},{"$f":"SUM(E17:E23)","v":0},{"$f":"SUM(F17:F23)","v":0},{"$f":"SUM(G17:G23)","v":0},{"$f":"IF(Licentie,SUM(C24:G24),0)","v":0}]
[]
[null,"Kadobonnen ingewisseld","( aangeslagen op kassa, goederen verlaten winkel)"]
[null,"Kadobonnen verkocht","(wordt niet aangeslagen op kassa)"]
[]
[null,"Bankstorting ","contant geld"]
[null,"Bankstorting ","contant geld"]
[null,"Bankstorting ","contant geld"]
[null,"Van bank opgenomen"]
[]
[null,"Overige uitgaven:","Omschrijving:","Aan wie:","Bedrag:"]
[]
[]
[]
[]
[]
[]
[]
[]
[]
[]
[]
[]
[]
[null,"Prive opname"]
[null,"Totaal uitgaven",null,null,{"$f":"SUM(E35:E48)","v":0},null,null,{"$f":"SUM(E49)","v":0}]
[]
[null,null,null,null,null,null,"kasverschillen"]
[]
[null,"Geteld kasgeld hier vermelden:",null,null,null,null,"Tellingen",{"$f":"IF(Licentie,SUM(H5:H52),0)","v":0},{"$f":"IF(Licentie,SUM(I5:I52),0)","v":0}]
[]
[]
[null,null,null,null,null,"Kassaldo","einde week:",null,{"$f":"SUM(I53-H53)","v":0}]
[]
[null,"Bijzonderheden:"]

{"sheet":"38","index":37,"n_rows":58,"n_cols":9,"rows_kept":58,"cut":false,"hidden":false,"merged":[]}
[null,{"$f":"KbTxt","v":"Kasboek"},"Weeknr: ",38,"Jaar :  ",{"$f":"jaar","v":0},"Winkel :",{"$f":"naam","v":0}]
[]
["Datum:","Omschrijving",null,null,null,null,null,"Uitgaven","Inkomsten"]
[]
[null,null,null,null,"Verkopen","Overige","Omschrij-","Beginsaldo",{"$f":"IF(Licentie,INDIRECT(\"'\"&D1-1&\"'!I56\"),0)","v":0}]
[null,null,"Kassa 1","Kassa 2","op rekening","inkomsten","ving"]
[{"$f":"IF(jr,\"\",INDIRECT(\"'\"&D1-1&\"'!A13\")+1)","v":""},"Omzet maandag"]
[{"$f":"IF(jr,\"\",A7+1)","v":""},"Omzet dinsdag"]
["","Omzet woensdag"]
["","Omzet donderdag"]
["","Omzet vrijdag"]
["","Omzet zaterdag"]
["","Omzet zondag"]
[null,"Weektotaal",{"$f":"SUM(C7:C13)","v":0},{"$f":"SUM(D7:D13)","v":0},{"$f":"SUM(E7:E13)","v":0},{"$f":"SUM(F7:F13)","v":0},{"$f":"SUM(G7:G13)","v":0},null,{"$f":"IF(Licentie,SUM(C14:G14),0)","v":0}]
[]
[null,null,"Pin","Pin","Chip","Eurocard","Visa e.a."]
[{"$f":"A7","v":""},"Maandag"]
[{"$f":"A8","v":""},"Dinsdag"]
["","Woensdag"]
["","Donderdag"]
["","Vrijdag"]
["","Zaterdag"]
["","Zondag"]
[null,"Weektotaal",{"$f":"SUM(C17:C23)","v":0},{"$f":"SUM(D17:D23)","v":0},{"$f":"SUM(E17:E23)","v":0},{"$f":"SUM(F17:F23)","v":0},{"$f":"SUM(G17:G23)","v":0},{"$f":"IF(Licentie,SUM(C24:G24),0)","v":0}]
[]
[null,"Kadobonnen ingewisseld","( aangeslagen op kassa, goederen verlaten winkel)"]
[null,"Kadobonnen verkocht","(wordt niet aangeslagen op kassa)"]
[]
[null,"Bankstorting ","contant geld"]
[null,"Bankstorting ","contant geld"]
[null,"Bankstorting ","contant geld"]
[null,"Van bank opgenomen"]
[]
[null,"Overige uitgaven:","Omschrijving:","Aan wie:","Bedrag:"]
[]
[]
[]
[]
[]
[]
[]
[]
[]
[]
[]
[]
[]
[null,"Prive opname"]
[null,"Totaal uitgaven",null,null,{"$f":"SUM(E35:E48)","v":0},null,null,{"$f":"SUM(E49)","v":0}]
[]
[null,null,null,null,null,null,"kasverschillen"]
[]
[null,"Geteld kasgeld hier vermelden:",null,null,null,null,"Tellingen",{"$f":"IF(Licentie,SUM(H5:H52),0)","v":0},{"$f":"IF(Licentie,SUM(I5:I52),0)","v":0}]
[]
[]
[null,null,null,null,null,"Kassaldo","einde week:",null,{"$f":"SUM(I53-H53)","v":0}]
[]
[null,"Bijzonderheden:"]

{"sheet":"39","index":38,"n_rows":58,"n_cols":9,"rows_kept":58,"cut":false,"hidden":false,"merged":[]}
[null,{"$f":"KbTxt","v":"Kasboek"},"Weeknr: ",39,"Jaar :  ",{"$f":"jaar","v":0},"Winkel :",{"$f":"naam","v":0}]
[]
["Datum:","Omschrijving",null,null,null,null,null,"Uitgaven","Inkomsten"]
[]
[null,null,null,null,"Verkopen","Overige","Omschrij-","Beginsaldo",{"$f":"IF(Licentie,INDIRECT(\"'\"&D1-1&\"'!I56\"),0)","v":0}]
[null,null,"Kassa 1","Kassa 2","op rekening","inkomsten","ving"]
[{"$f":"IF(jr,\"\",INDIRECT(\"'\"&D1-1&\"'!A13\")+1)","v":""},"Omzet maandag"]
[{"$f":"IF(jr,\"\",A7+1)","v":""},"Omzet dinsdag"]
["","Omzet woensdag"]
["","Omzet donderdag"]
["","Omzet vrijdag"]
["","Omzet zaterdag"]
["","Omzet zondag"]
[null,"Weektotaal",{"$f":"SUM(C7:C13)","v":0},{"$f":"SUM(D7:D13)","v":0},{"$f":"SUM(E7:E13)","v":0},{"$f":"SUM(F7:F13)","v":0},{"$f":"SUM(G7:G13)","v":0},null,{"$f":"IF(Licentie,SUM(C14:G14),0)","v":0}]
[]
[null,null,"Pin","Pin","Chip","Eurocard","Visa e.a."]
[{"$f":"A7","v":""},"Maandag"]
[{"$f":"A8","v":""},"Dinsdag"]
["","Woensdag"]
["","Donderdag"]
["","Vrijdag"]
["","Zaterdag"]
["","Zondag"]
[null,"Weektotaal",{"$f":"SUM(C17:C23)","v":0},{"$f":"SUM(D17:D23)","v":0},{"$f":"SUM(E17:E23)","v":0},{"$f":"SUM(F17:F23)","v":0},{"$f":"SUM(G17:G23)","v":0},{"$f":"IF(Licentie,SUM(C24:G24),0)","v":0}]
[]
[null,"Kadobonnen ingewisseld","( aangeslagen op kassa, goederen verlaten winkel)"]
[null,"Kadobonnen verkocht","(wordt niet aangeslagen op kassa)"]
[]
[null,"Bankstorting ","contant geld"]
[null,"Bankstorting ","contant geld"]
[null,"Bankstorting ","contant geld"]
[null,"Van bank opgenomen"]
[]
[null,"Overige uitgaven:","Omschrijving:","Aan wie:","Bedrag:"]
[]
[]
[]
[]
[]
[]
[]
[]
[]
[]
[]
[]
[]
[null,"Prive opname"]
[null,"Totaal uitgaven",null,null,{"$f":"SUM(E35:E48)","v":0},null,null,{"$f":"SUM(E49)","v":0}]
[]
[null,null,null,null,null,null,"kasverschillen"]
[]
[null,"Geteld kasgeld hier vermelden:",null,null,null,null,"Tellingen",{"$f":"IF(Licentie,SUM(H5:H52),0)","v":0},{"$f":"IF(Licentie,SUM(I5:I52),0)","v":0}]
[]
[]
[null,null,null,null,null,"Kassaldo","einde week:",null,{"$f":"SUM(I53-H53)","v":0}]
[]
[null,"Bijzonderheden:"]

{"sheet":"40","index":39,"n_rows":58,"n_cols":9,"rows_kept":58,"cut":false,"hidden":false,"merged":[]}
[null,{"$f":"KbTxt","v":"Kasboek"},"Weeknr: ",40,"Jaar :  ",{"$f":"jaar","v":0},"Winkel :",{"$f":"naam","v":0}]
[]
["Datum:","Omschrijving",null,null,null,null,null,"Uitgaven","Inkomsten"]
[]
[null,null,null,null,"Verkopen","Overige","Omschrij-","Beginsaldo",{"$f":"IF(Licentie,INDIRECT(\"'\"&D1-1&\"'!I56\"),0)","v":0}]
[null,null,"Kassa 1","Kassa 2","op rekening","inkomsten","ving"]
[{"$f":"IF(jr,\"\",INDIRECT(\"'\"&D1-1&\"'!A13\")+1)","v":""},"Omzet maandag"]
[{"$f":"IF(jr,\"\",A7+1)","v":""},"Omzet dinsdag"]
["","Omzet woensdag"]
["","Omzet donderdag"]
["","Omzet vrijdag"]
["","Omzet zaterdag"]
["","Omzet zondag"]
[null,"Weektotaal",{"$f":"SUM(C7:C13)","v":0},{"$f":"SUM(D7:D13)","v":0},{"$f":"SUM(E7:E13)","v":0},{"$f":"SUM(F7:F13)","v":0},{"$f":"SUM(G7:G13)","v":0},null,{"$f":"IF(Licentie,SUM(C14:G14),0)","v":0}]
[]
[null,null,"Pin","Pin","Chip","Eurocard","Visa e.a."]
[{"$f":"A7","v":""},"Maandag"]
[{"$f":"A8","v":""},"Dinsdag"]
["","Woensdag"]
["","Donderdag"]
["","Vrijdag"]
["","Zaterdag"]
["","Zondag"]
[null,"Weektotaal",{"$f":"SUM(C17:C23)","v":0},{"$f":"SUM(D17:D23)","v":0},{"$f":"SUM(E17:E23)","v":0},{"$f":"SUM(F17:F23)","v":0},{"$f":"SUM(G17:G23)","v":0},{"$f":"IF(Licentie,SUM(C24:G24),0)","v":0}]
[]
[null,"Kadobonnen ingewisseld","( aangeslagen op kassa, goederen verlaten winkel)"]
[null,"Kadobonnen verkocht","(wordt niet aangeslagen op kassa)"]
[]
[null,"Bankstorting ","contant geld"]
[null,"Bankstorting ","contant geld"]
[null,"Bankstorting ","contant geld"]
[null,"Van bank opgenomen"]
[]
[null,"Overige uitgaven:","Omschrijving:","Aan wie:","Bedrag:"]
[]
[]
[]
[]
[]
[]
[]
[]
[]
[]
[]
[]
[]
[null,"Prive opname"]
[null,"Totaal uitgaven",null,null,{"$f":"SUM(E35:E48)","v":0},null,null,{"$f":"SUM(E49)","v":0}]
[]
[null,null,null,null,null,null,"kasverschillen"]
[]
[null,"Geteld kasgeld hier vermelden:",null,null,null,null,"Tellingen",{"$f":"IF(Licentie,SUM(H5:H52),0)","v":0},{"$f":"IF(Licentie,SUM(I5:I52),0)","v":0}]
[]
[]
[null,null,null,null,null,"Kassaldo","einde week:",null,{"$f":"SUM(I53-H53)","v":0}]
[]
[null,"Bijzonderheden:"]

{"sheet":"41","index":40,"n_rows":58,"n_cols":9,"rows_kept":58,"cut":false,"hidden":false,"merged":[]}
[null,{"$f":"KbTxt","v":"Kasboek"},"Weeknr: ",41,"Jaar :  ",{"$f":"jaar","v":0},"Winkel :",{"$f":"naam","v":0}]
[]
["Datum:","Omschrijving",null,null,null,null,null,"Uitgaven","Inkomsten"]
[]
[null,null,null,null,"Verkopen","Overige","Omschrij-","Beginsaldo",{"$f":"IF(Licentie,INDIRECT(\"'\"&D1-1&\"'!I56\"),0)","v":0}]
[null,null,"Kassa 1","Kassa 2","op rekening","inkomsten","ving"]
[{"$f":"IF(jr,\"\",INDIRECT(\"'\"&D1-1&\"'!A13\")+1)","v":""},"Omzet maandag"]
[{"$f":"IF(jr,\"\",A7+1)","v":""},"Omzet dinsdag"]
["","Omzet woensdag"]
["","Omzet donderdag"]
["","Omzet vrijdag"]
["","Omzet zaterdag"]
["","Omzet zondag"]
[null,"Weektotaal",{"$f":"SUM(C7:C13)","v":0},{"$f":"SUM(D7:D13)","v":0},{"$f":"SUM(E7:E13)","v":0},{"$f":"SUM(F7:F13)","v":0},{"$f":"SUM(G7:G13)","v":0},null,{"$f":"IF(Licentie,SUM(C14:G14),0)","v":0}]
[]
[null,null,"Pin","Pin","Chip","Eurocard","Visa e.a."]
[{"$f":"A7","v":""},"Maandag"]
[{"$f":"A8","v":""},"Dinsdag"]
["","Woensdag"]
["","Donderdag"]
["","Vrijdag"]
["","Zaterdag"]
["","Zondag"]
[null,"Weektotaal",{"$f":"SUM(C17:C23)","v":0},{"$f":"SUM(D17:D23)","v":0},{"$f":"SUM(E17:E23)","v":0},{"$f":"SUM(F17:F23)","v":0},{"$f":"SUM(G17:G23)","v":0},{"$f":"IF(Licentie,SUM(C24:G24),0)","v":0}]
[]
[null,"Kadobonnen ingewisseld","( aangeslagen op kassa, goederen verlaten winkel)"]
[null,"Kadobonnen verkocht","(wordt niet aangeslagen op kassa)"]
[]
[null,"Bankstorting ","contant geld"]
[null,"Bankstorting ","contant geld"]
[null,"Bankstorting ","contant geld"]
[null,"Van bank opgenomen"]
[]
[null,"Overige uitgaven:","Omschrijving:","Aan wie:","Bedrag:"]
[]
[]
[]
[]
[]
[]
[]
[]
[]
[]
[]
[]
[]
[null,"Prive opname"]
[null,"Totaal uitgaven",null,null,{"$f":"SUM(E35:E48)","v":0},null,null,{"$f":"SUM(E49)","v":0}]
[]
[null,null,null,null,null,null,"kasverschillen"]
[]
[null,"Geteld kasgeld hier vermelden:",null,null,null,null,"Tellingen",{"$f":"IF(Licentie,SUM(H5:H52),0)","v":0},{"$f":"IF(Licentie,SUM(I5:I52),0)","v":0}]
[]
[]
[null,null,null,null,null,"Kassaldo","einde week:",null,{"$f":"SUM(I53-H53)","v":0}]
[]
[null,"Bijzonderheden:"]

{"sheet":"42","index":41,"n_rows":58,"n_cols":9,"rows_kept":58,"cut":false,"hidden":false,"merged":[]}
[null,{"$f":"KbTxt","v":"Kasboek"},"Weeknr: ",42,"Jaar :  ",{"$f":"jaar","v":0},"Winkel :",{"$f":"naam","v":0}]
[]
["Datum:","Omschrijving",null,null,null,null,null,"Uitgaven","Inkomsten"]
[]
[null,null,null,null,"Verkopen","Overige","Omschrij-","Beginsaldo",{"$f":"IF(Licentie,INDIRECT(\"'\"&D1-1&\"'!I56\"),0)","v":0}]
[null,null,"Kassa 1","Kassa 2","op rekening","inkomsten","ving"]
[{"$f":"IF(jr,\"\",INDIRECT(\"'\"&D1-1&\"'!A13\")+1)","v":""},"Omzet maandag"]
[{"$f":"IF(jr,\"\",A7+1)","v":""},"Omzet dinsdag"]
["","Omzet woensdag"]
["","Omzet donderdag"]
["","Omzet vrijdag"]
["","Omzet zaterdag"]
["","Omzet zondag"]
[null,"Weektotaal",{"$f":"SUM(C7:C13)","v":0},{"$f":"SUM(D7:D13)","v":0},{"$f":"SUM(E7:E13)","v":0},{"$f":"SUM(F7:F13)","v":0},{"$f":"SUM(G7:G13)","v":0},null,{"$f":"IF(Licentie,SUM(C14:G14),0)","v":0}]
[]
[null,null,"Pin","Pin","Chip","Eurocard","Visa e.a."]
[{"$f":"A7","v":""},"Maandag"]
[{"$f":"A8","v":""},"Dinsdag"]
["","Woensdag"]
["","Donderdag"]
["","Vrijdag"]
["","Zaterdag"]
["","Zondag"]
[null,"Weektotaal",{"$f":"SUM(C17:C23)","v":0},{"$f":"SUM(D17:D23)","v":0},{"$f":"SUM(E17:E23)","v":0},{"$f":"SUM(F17:F23)","v":0},{"$f":"SUM(G17:G23)","v":0},{"$f":"IF(Licentie,SUM(C24:G24),0)","v":0}]
[]
[null,"Kadobonnen ingewisseld","( aangeslagen op kassa, goederen verlaten winkel)"]
[null,"Kadobonnen verkocht","(wordt niet aangeslagen op kassa)"]
[]
[null,"Bankstorting ","contant geld"]
[null,"Bankstorting ","contant geld"]
[null,"Bankstorting ","contant geld"]
[null,"Van bank opgenomen"]
[]
[null,"Overige uitgaven:","Omschrijving:","Aan wie:","Bedrag:"]
[]
[]
[]
[]
[]
[]
[]
[]
[]
[]
[]
[]
[]
[null,"Prive opname"]
[null,"Totaal uitgaven",null,null,{"$f":"SUM(E35:E48)","v":0},null,null,{"$f":"SUM(E49)","v":0}]
[]
[null,null,null,null,null,null,"kasverschillen"]
[]
[null,"Geteld kasgeld hier vermelden:",null,null,null,null,"Tellingen",{"$f":"IF(Licentie,SUM(H5:H52),0)","v":0},{"$f":"IF(Licentie,SUM(I5:I52),0)","v":0}]
[]
[]
[null,null,null,null,null,"Kassaldo","einde week:",null,{"$f":"SUM(I53-H53)","v":0}]
[]
[null,"Bijzonderheden:"]

{"sheet":"43","index":42,"n_rows":58,"n_cols":9,"rows_kept":58,"cut":false,"hidden":false,"merged":[]}
[null,{"$f":"KbTxt","v":"Kasboek"},"Weeknr: ",43,"Jaar :  ",{"$f":"jaar","v":0},"Winkel :",{"$f":"naam","v":0}]
[]
["Datum:","Omschrijving",null,null,null,null,null,"Uitgaven","Inkomsten"]
[]
[null,null,null,null,"Verkopen","Overige","Omschrij-","Beginsaldo",{"$f":"IF(Licentie,INDIRECT(\"'\"&D1-1&\"'!I56\"),0)","v":0}]
[null,null,"Kassa 1","Kassa 2","op rekening","inkomsten","ving"]
[{"$f":"IF(jr,\"\",INDIRECT(\"'\"&D1-1&\"'!A13\")+1)","v":""},"Omzet maandag"]
[{"$f":"IF(jr,\"\",A7+1)","v":""},"Omzet dinsdag"]
["","Omzet woensdag"]
["","Omzet donderdag"]
["","Omzet vrijdag"]
["","Omzet zaterdag"]
["","Omzet zondag"]
[null,"Weektotaal",{"$f":"SUM(C7:C13)","v":0},{"$f":"SUM(D7:D13)","v":0},{"$f":"SUM(E7:E13)","v":0},{"$f":"SUM(F7:F13)","v":0},{"$f":"SUM(G7:G13)","v":0},null,{"$f":"IF(Licentie,SUM(C14:G14),0)","v":0}]
[]
[null,null,"Pin","Pin","Chip","Eurocard","Visa e.a."]
[{"$f":"A7","v":""},"Maandag"]
[{"$f":"A8","v":""},"Dinsdag"]
["","Woensdag"]
["","Donderdag"]
["","Vrijdag"]
["","Zaterdag"]
["","Zondag"]
[null,"Weektotaal",{"$f":"SUM(C17:C23)","v":0},{"$f":"SUM(D17:D23)","v":0},{"$f":"SUM(E17:E23)","v":0},{"$f":"SUM(F17:F23)","v":0},{"$f":"SUM(G17:G23)","v":0},{"$f":"IF(Licentie,SUM(C24:G24),0)","v":0}]
[]
[null,"Kadobonnen ingewisseld","( aangeslagen op kassa, goederen verlaten winkel)"]
[null,"Kadobonnen verkocht","(wordt niet aangeslagen op kassa)"]
[]
[null,"Bankstorting ","contant geld"]
[null,"Bankstorting ","contant geld"]
[null,"Bankstorting ","contant geld"]
[null,"Van bank opgenomen"]
[]
[null,"Overige uitgaven:","Omschrijving:","Aan wie:","Bedrag:"]
[]
[]
[]
[]
[]
[]
[]
[]
[]
[]
[]
[]
[]
[null,"Prive opname"]
[null,"Totaal uitgaven",null,null,{"$f":"SUM(E35:E48)","v":0},null,null,{"$f":"SUM(E49)","v":0}]
[]
[null,null,null,null,null,null,"kasverschillen"]
[]
[null,"Geteld kasgeld hier vermelden:",null,null,null,null,"Tellingen",{"$f":"IF(Licentie,SUM(H5:H52),0)","v":0},{"$f":"IF(Licentie,SUM(I5:I52),0)","v":0}]
[]
[]
[null,null,null,null,null,"Kassaldo","einde week:",null,{"$f":"SUM(I53-H53)","v":0}]
[]
[null,"Bijzonderheden:"]

{"sheet":"44","index":43,"n_rows":58,"n_cols":9,"rows_kept":58,"cut":false,"hidden":false,"merged":[]}
[null,{"$f":"KbTxt","v":"Kasboek"},"Weeknr: ",44,"Jaar :  ",{"$f":"jaar","v":0},"Winkel :",{"$f":"naam","v":0}]
[]
["Datum:","Omschrijving",null,null,null,null,null,"Uitgaven","Inkomsten"]
[]
[null,null,null,null,"Verkopen","Overige","Omschrij-","Beginsaldo",{"$f":"IF(Licentie,INDIRECT(\"'\"&D1-1&\"'!I56\"),0)","v":0}]
[null,null,"Kassa 1","Kassa 2","op rekening","inkomsten","ving"]
[{"$f":"IF(jr,\"\",INDIRECT(\"'\"&D1-1&\"'!A13\")+1)","v":""},"Omzet maandag"]
[{"$f":"IF(jr,\"\",A7+1)","v":""},"Omzet dinsdag"]
["","Omzet woensdag"]
["","Omzet donderdag"]
["","Omzet vrijdag"]
["","Omzet zaterdag"]
["","Omzet zondag"]
[null,"Weektotaal",{"$f":"SUM(C7:C13)","v":0},{"$f":"SUM(D7:D13)","v":0},{"$f":"SUM(E7:E13)","v":0},{"$f":"SUM(F7:F13)","v":0},{"$f":"SUM(G7:G13)","v":0},null,{"$f":"IF(Licentie,SUM(C14:G14),0)","v":0}]
[]
[null,null,"Pin","Pin","Chip","Eurocard","Visa e.a."]
[{"$f":"A7","v":""},"Maandag"]
[{"$f":"A8","v":""},"Dinsdag"]
["","Woensdag"]
["","Donderdag"]
["","Vrijdag"]
["","Zaterdag"]
["","Zondag"]
[null,"Weektotaal",{"$f":"SUM(C17:C23)","v":0},{"$f":"SUM(D17:D23)","v":0},{"$f":"SUM(E17:E23)","v":0},{"$f":"SUM(F17:F23)","v":0},{"$f":"SUM(G17:G23)","v":0},{"$f":"IF(Licentie,SUM(C24:G24),0)","v":0}]
[]
[null,"Kadobonnen ingewisseld","( aangeslagen op kassa, goederen verlaten winkel)"]
[null,"Kadobonnen verkocht","(wordt niet aangeslagen op kassa)"]
[]
[null,"Bankstorting ","contant geld"]
[null,"Bankstorting ","contant geld"]
[null,"Bankstorting ","contant geld"]
[null,"Van bank opgenomen"]
[]
[null,"Overige uitgaven:","Omschrijving:","Aan wie:","Bedrag:"]
[]
[]
[]
[]
[]
[]
[]
[]
[]
[]
[]
[]
[]
[null,"Prive opname"]
[null,"Totaal uitgaven",null,null,{"$f":"SUM(E35:E48)","v":0},null,null,{"$f":"SUM(E49)","v":0}]
[]
[null,null,null,null,null,null,"kasverschillen"]
[]
[null,"Geteld kasgeld hier vermelden:",null,null,null,null,"Tellingen",{"$f":"IF(Licentie,SUM(H5:H52),0)","v":0},{"$f":"IF(Licentie,SUM(I5:I52),0)","v":0}]
[]
[]
[null,null,null,null,null,"Kassaldo","einde week:",null,{"$f":"SUM(I53-H53)","v":0}]
[]
[null,"Bijzonderheden:"]

{"sheet":"45","index":44,"n_rows":58,"n_cols":9,"rows_kept":58,"cut":false,"hidden":false,"merged":[]}
[null,{"$f":"KbTxt","v":"Kasboek"},"Weeknr: ",45,"Jaar :  ",{"$f":"jaar","v":0},"Winkel :",{"$f":"naam","v":0}]
[]
["Datum:","Omschrijving",null,null,null,null,null,"Uitgaven","Inkomsten"]
[]
[null,null,null,null,"Verkopen","Overige","Omschrij-","Beginsaldo",{"$f":"IF(Licentie,INDIRECT(\"'\"&D1-1&\"'!I56\"),0)","v":0}]
[null,null,"Kassa 1","Kassa 2","op rekening","inkomsten","ving"]
[{"$f":"IF(jr,\"\",INDIRECT(\"'\"&D1-1&\"'!A13\")+1)","v":""},"Omzet maandag"]
[{"$f":"IF(jr,\"\",A7+1)","v":""},"Omzet dinsdag"]
["","Omzet woensdag"]
["","Omzet donderdag"]
["","Omzet vrijdag"]
["","Omzet zaterdag"]
["","Omzet zondag"]
[null,"Weektotaal",{"$f":"SUM(C7:C13)","v":0},{"$f":"SUM(D7:D13)","v":0},{"$f":"SUM(E7:E13)","v":0},{"$f":"SUM(F7:F13)","v":0},{"$f":"SUM(G7:G13)","v":0},null,{"$f":"IF(Licentie,SUM(C14:G14),0)","v":0}]
[]
[null,null,"Pin","Pin","Chip","Eurocard","Visa e.a."]
[{"$f":"A7","v":""},"Maandag"]
[{"$f":"A8","v":""},"Dinsdag"]
["","Woensdag"]
["","Donderdag"]
["","Vrijdag"]
["","Zaterdag"]
["","Zondag"]
[null,"Weektotaal",{"$f":"SUM(C17:C23)","v":0},{"$f":"SUM(D17:D23)","v":0},{"$f":"SUM(E17:E23)","v":0},{"$f":"SUM(F17:F23)","v":0},{"$f":"SUM(G17:G23)","v":0},{"$f":"IF(Licentie,SUM(C24:G24),0)","v":0}]
[]
[null,"Kadobonnen ingewisseld","( aangeslagen op kassa, goederen verlaten winkel)"]
[null,"Kadobonnen verkocht","(wordt niet aangeslagen op kassa)"]
[]
[null,"Bankstorting ","contant geld"]
[null,"Bankstorting ","contant geld"]
[null,"Bankstorting ","contant geld"]
[null,"Van bank opgenomen"]
[]
[null,"Overige uitgaven:","Omschrijving:","Aan wie:","Bedrag:"]
[]
[]
[]
[]
[]
[]
[]
[]
[]
[]
[]
[]
[]
[null,"Prive opname"]
[null,"Totaal uitgaven",null,null,{"$f":"SUM(E35:E48)","v":0},null,null,{"$f":"SUM(E49)","v":0}]
[]
[null,null,null,null,null,null,"kasverschillen"]
[]
[null,"Geteld kasgeld hier vermelden:",null,null,null,null,"Tellingen",{"$f":"IF(Licentie,SUM(H5:H52),0)","v":0},{"$f":"IF(Licentie,SUM(I5:I52),0)","v":0}]
[]
[]
[null,null,null,null,null,"Kassaldo","einde week:",null,{"$f":"SUM(I53-H53)","v":0}]
[]
[null,"Bijzonderheden:"]

{"sheet":"46","index":45,"n_rows":58,"n_cols":9,"rows_kept":58,"cut":false,"hidden":false,"merged":[]}
[null,{"$f":"KbTxt","v":"Kasboek"},"Weeknr: ",46,"Jaar :  ",{"$f":"jaar","v":0},"Winkel :",{"$f":"naam","v":0}]
[]
["Datum:","Omschrijving",null,null,null,null,null,"Uitgaven","Inkomsten"]
[]
[null,null,null,null,"Verkopen","Overige","Omschrij-","Beginsaldo",{"$f":"IF(Licentie,INDIRECT(\"'\"&D1-1&\"'!I56\"),0)","v":0}]
[null,null,"Kassa 1","Kassa 2","op rekening","inkomsten","ving"]
[{"$f":"IF(jr,\"\",INDIRECT(\"'\"&D1-1&\"'!A13\")+1)","v":""},"Omzet maandag"]
[{"$f":"IF(jr,\"\",A7+1)","v":""},"Omzet dinsdag"]
["","Omzet woensdag"]
["","Omzet donderdag"]
["","Omzet vrijdag"]
["","Omzet zaterdag"]
["","Omzet zondag"]
[null,"Weektotaal",{"$f":"SUM(C7:C13)","v":0},{"$f":"SUM(D7:D13)","v":0},{"$f":"SUM(E7:E13)","v":0},{"$f":"SUM(F7:F13)","v":0},{"$f":"SUM(G7:G13)","v":0},null,{"$f":"IF(Licentie,SUM(C14:G14),0)","v":0}]
[]
[null,null,"Pin","Pin","Chip","Eurocard","Visa e.a."]
[{"$f":"A7","v":""},"Maandag"]
[{"$f":"A8","v":""},"Dinsdag"]
["","Woensdag"]
["","Donderdag"]
["","Vrijdag"]
["","Zaterdag"]
["","Zondag"]
[null,"Weektotaal",{"$f":"SUM(C17:C23)","v":0},{"$f":"SUM(D17:D23)","v":0},{"$f":"SUM(E17:E23)","v":0},{"$f":"SUM(F17:F23)","v":0},{"$f":"SUM(G17:G23)","v":0},{"$f":"IF(Licentie,SUM(C24:G24),0)","v":0}]
[]
[null,"Kadobonnen ingewisseld","( aangeslagen op kassa, goederen verlaten winkel)"]
[null,"Kadobonnen verkocht","(wordt niet aangeslagen op kassa)"]
[]
[null,"Bankstorting ","contant geld"]
[null,"Bankstorting ","contant geld"]
[null,"Bankstorting ","contant geld"]
[null,"Van bank opgenomen"]
[]
[null,"Overige uitgaven:","Omschrijving:","Aan wie:","Bedrag:"]
[]
[]
[]
[]
[]
[]
[]
[]
[]
[]
[]
[]
[]
[null,"Prive opname"]
[null,"Totaal uitgaven",null,null,{"$f":"SUM(E35:E48)","v":0},null,null,{"$f":"SUM(E49)","v":0}]
[]
[null,null,null,null,null,null,"kasverschillen"]
[]
[null,"Geteld kasgeld hier vermelden:",null,null,null,null,"Tellingen",{"$f":"IF(Licentie,SUM(H5:H52),0)","v":0},{"$f":"IF(Licentie,SUM(I5:I52),0)","v":0}]
[]
[]
[null,null,null,null,null,"Kassaldo","einde week:",null,{"$f":"SUM(I53-H53)","v":0}]
[]
[null,"Bijzonderheden:"]

{"sheet":"47","index":46,"n_rows":58,"n_cols":9,"rows_kept":58,"cut":false,"hidden":false,"merged":[]}
[null,{"$f":"KbTxt","v":"Kasboek"},"Weeknr: ",47,"Jaar :  ",{"$f":"jaar","v":0},"Winkel :",{"$f":"naam","v":0}]
[]
["Datum:","Omschrijving",null,null,null,null,null,"Uitgaven","Inkomsten"]
[]
[null,null,null,null,"Verkopen","Overige","Omschrij-","Beginsaldo",{"$f":"IF(Licentie,INDIRECT(\"'\"&D1-1&\"'!I56\"),0)","v":0}]
[null,null,"Kassa 1","Kassa 2","op rekening","inkomsten","ving"]
[{"$f":"IF(jr,\"\",INDIRECT(\"'\"&D1-1&\"'!A13\")+1)","v":""},"Omzet maandag"]
[{"$f":"IF(jr,\"\",A7+1)","v":""},"Omzet dinsdag"]
["","Omzet woensdag"]
["","Omzet donderdag"]
["","Omzet vrijdag"]
["","Omzet zaterdag"]
["","Omzet zondag"]
[null,"Weektotaal",{"$f":"SUM(C7:C13)","v":0},{"$f":"SUM(D7:D13)","v":0},{"$f":"SUM(E7:E13)","v":0},{"$f":"SUM(F7:F13)","v":0},{"$f":"SUM(G7:G13)","v":0},null,{"$f":"IF(Licentie,SUM(C14:G14),0)","v":0}]
[]
[null,null,"Pin","Pin","Chip","Eurocard","Visa e.a."]
[{"$f":"A7","v":""},"Maandag"]
[{"$f":"A8","v":""},"Dinsdag"]
["","Woensdag"]
["","Donderdag"]
["","Vrijdag"]
["","Zaterdag"]
["","Zondag"]
[null,"Weektotaal",{"$f":"SUM(C17:C23)","v":0},{"$f":"SUM(D17:D23)","v":0},{"$f":"SUM(E17:E23)","v":0},{"$f":"SUM(F17:F23)","v":0},{"$f":"SUM(G17:G23)","v":0},{"$f":"IF(Licentie,SUM(C24:G24),0)","v":0}]
[]
[null,"Kadobonnen ingewisseld","( aangeslagen op kassa, goederen verlaten winkel)"]
[null,"Kadobonnen verkocht","(wordt niet aangeslagen op kassa)"]
[]
[null,"Bankstorting ","contant geld"]
[null,"Bankstorting ","contant geld"]
[null,"Bankstorting ","contant geld"]
[null,"Van bank opgenomen"]
[]
[null,"Overige uitgaven:","Omschrijving:","Aan wie:","Bedrag:"]
[]
[]
[]
[]
[]
[]
[]
[]
[]
[]
[]
[]
[]
[null,"Prive opname"]
[null,"Totaal uitgaven",null,null,{"$f":"SUM(E35:E48)","v":0},null,null,{"$f":"SUM(E49)","v":0}]
[]
[null,null,null,null,null,null,"kasverschillen"]
[]
[null,"Geteld kasgeld hier vermelden:",null,null,null,null,"Tellingen",{"$f":"IF(Licentie,SUM(H5:H52),0)","v":0},{"$f":"IF(Licentie,SUM(I5:I52),0)","v":0}]
[]
[]
[null,null,null,null,null,"Kassaldo","einde week:",null,{"$f":"SUM(I53-H53)","v":0}]
[]
[null,"Bijzonderheden:"]

{"sheet":"48","index":47,"n_rows":58,"n_cols":9,"rows_kept":58,"cut":false,"hidden":false,"merged":[]}
[null,{"$f":"KbTxt","v":"Kasboek"},"Weeknr: ",48,"Jaar :  ",{"$f":"jaar","v":0},"Winkel :",{"$f":"naam","v":0}]
[]
["Datum:","Omschrijving",null,null,null,null,null,"Uitgaven","Inkomsten"]
[]
[null,null,null,null,"Verkopen","Overige","Omschrij-","Beginsaldo",{"$f":"IF(Licentie,INDIRECT(\"'\"&D1-1&\"'!I56\"),0)","v":0}]
[null,null,"Kassa 1","Kassa 2","op rekening","inkomsten","ving"]
[{"$f":"IF(jr,\"\",INDIRECT(\"'\"&D1-1&\"'!A13\")+1)","v":""},"Omzet maandag"]
[{"$f":"IF(jr,\"\",A7+1)","v":""},"Omzet dinsdag"]
["","Omzet woensdag"]
["","Omzet donderdag"]
["","Omzet vrijdag"]
["","Omzet zaterdag"]
["","Omzet zondag"]
[null,"Weektotaal",{"$f":"SUM(C7:C13)","v":0},{"$f":"SUM(D7:D13)","v":0},{"$f":"SUM(E7:E13)","v":0},{"$f":"SUM(F7:F13)","v":0},{"$f":"SUM(G7:G13)","v":0},null,{"$f":"IF(Licentie,SUM(C14:G14),0)","v":0}]
[]
[null,null,"Pin","Pin","Chip","Eurocard","Visa e.a."]
[{"$f":"A7","v":""},"Maandag"]
[{"$f":"A8","v":""},"Dinsdag"]
["","Woensdag"]
["","Donderdag"]
["","Vrijdag"]
["","Zaterdag"]
["","Zondag"]
[null,"Weektotaal",{"$f":"SUM(C17:C23)","v":0},{"$f":"SUM(D17:D23)","v":0},{"$f":"SUM(E17:E23)","v":0},{"$f":"SUM(F17:F23)","v":0},{"$f":"SUM(G17:G23)","v":0},{"$f":"IF(Licentie,SUM(C24:G24),0)","v":0}]
[]
[null,"Kadobonnen ingewisseld","( aangeslagen op kassa, goederen verlaten winkel)"]
[null,"Kadobonnen verkocht","(wordt niet aangeslagen op kassa)"]
[]
[null,"Bankstorting ","contant geld"]
[null,"Bankstorting ","contant geld"]
[null,"Bankstorting ","contant geld"]
[null,"Van bank opgenomen"]
[]
[null,"Overige uitgaven:","Omschrijving:","Aan wie:","Bedrag:"]
[]
[]
[]
[]
[]
[]
[]
[]
[]
[]
[]
[]
[]
[null,"Prive opname"]
[null,"Totaal uitgaven",null,null,{"$f":"SUM(E35:E48)","v":0},null,null,{"$f":"SUM(E49)","v":0}]
[]
[null,null,null,null,null,null,"kasverschillen"]
[]
[null,"Geteld kasgeld hier vermelden:",null,null,null,null,"Tellingen",{"$f":"IF(Licentie,SUM(H5:H52),0)","v":0},{"$f":"IF(Licentie,SUM(I5:I52),0)","v":0}]
[]
[]
[null,null,null,null,null,"Kassaldo","einde week:",null,{"$f":"SUM(I53-H53)","v":0}]
[]
[null,"Bijzonderheden:"]

{"sheet":"49","index":48,"n_rows":58,"n_cols":9,"rows_kept":58,"cut":false,"hidden":false,"merged":[]}
[null,{"$f":"KbTxt","v":"Kasboek"},"Weeknr: ",49,"Jaar :  ",{"$f":"jaar","v":0},"Winkel :",{"$f":"naam","v":0}]
[]
["Datum:","Omschrijving",null,null,null,null,null,"Uitgaven","Inkomsten"]
[]
[null,null,null,null,"Verkopen","Overige","Omschrij-","Beginsaldo",{"$f":"IF(Licentie,INDIRECT(\"'\"&D1-1&\"'!I56\"),0)","v":0}]
[null,null,"Kassa 1","Kassa 2","op rekening","inkomsten","ving"]
[{"$f":"IF(jr,\"\",INDIRECT(\"'\"&D1-1&\"'!A13\")+1)","v":""},"Omzet maandag"]
[{"$f":"IF(jr,\"\",A7+1)","v":""},"Omzet dinsdag"]
["","Omzet woensdag"]
["","Omzet donderdag"]
["","Omzet vrijdag"]
["","Omzet zaterdag"]
["","Omzet zondag"]
[null,"Weektotaal",{"$f":"SUM(C7:C13)","v":0},{"$f":"SUM(D7:D13)","v":0},{"$f":"SUM(E7:E13)","v":0},{"$f":"SUM(F7:F13)","v":0},{"$f":"SUM(G7:G13)","v":0},null,{"$f":"IF(Licentie,SUM(C14:G14),0)","v":0}]
[]
[null,null,"Pin","Pin","Chip","Eurocard","Visa e.a."]
[{"$f":"A7","v":""},"Maandag"]
[{"$f":"A8","v":""},"Dinsdag"]
["","Woensdag"]
["","Donderdag"]
["","Vrijdag"]
["","Zaterdag"]
["","Zondag"]
[null,"Weektotaal",{"$f":"SUM(C17:C23)","v":0},{"$f":"SUM(D17:D23)","v":0},{"$f":"SUM(E17:E23)","v":0},{"$f":"SUM(F17:F23)","v":0},{"$f":"SUM(G17:G23)","v":0},{"$f":"IF(Licentie,SUM(C24:G24),0)","v":0}]
[]
[null,"Kadobonnen ingewisseld","( aangeslagen op kassa, goederen verlaten winkel)"]
[null,"Kadobonnen verkocht","(wordt niet aangeslagen op kassa)"]
[]
[null,"Bankstorting ","contant geld"]
[null,"Bankstorting ","contant geld"]
[null,"Bankstorting ","contant geld"]
[null,"Van bank opgenomen"]
[]
[null,"Overige uitgaven:","Omschrijving:","Aan wie:","Bedrag:"]
[]
[]
[]
[]
[]
[]
[]
[]
[]
[]
[]
[]
[]
[null,"Prive opname"]
[null,"Totaal uitgaven",null,null,{"$f":"SUM(E35:E48)","v":0},null,null,{"$f":"SUM(E49)","v":0}]
[]
[null,null,null,null,null,null,"kasverschillen"]
[]
[null,"Geteld kasgeld hier vermelden:",null,null,null,null,"Tellingen",{"$f":"IF(Licentie,SUM(H5:H52),0)","v":0},{"$f":"IF(Licentie,SUM(I5:I52),0)","v":0}]
[]
[]
[null,null,null,null,null,"Kassaldo","einde week:",null,{"$f":"SUM(I53-H53)","v":0}]
[]
[null,"Bijzonderheden:"]

{"sheet":"50","index":49,"n_rows":58,"n_cols":9,"rows_kept":58,"cut":false,"hidden":false,"merged":[]}
[null,{"$f":"KbTxt","v":"Kasboek"},"Weeknr: ",50,"Jaar :  ",{"$f":"jaar","v":0},"Winkel :",{"$f":"naam","v":0}]
[]
["Datum:","Omschrijving",null,null,null,null,null,"Uitgaven","Inkomsten"]
[]
[null,null,null,null,"Verkopen","Overige","Omschrij-","Beginsaldo",{"$f":"IF(Licentie,INDIRECT(\"'\"&D1-1&\"'!I56\"),0)","v":0}]
[null,null,"Kassa 1","Kassa 2","op rekening","inkomsten","ving"]
[{"$f":"IF(jr,\"\",INDIRECT(\"'\"&D1-1&\"'!A13\")+1)","v":""},"Omzet maandag"]
[{"$f":"IF(jr,\"\",A7+1)","v":""},"Omzet dinsdag"]
["","Omzet woensdag"]
["","Omzet donderdag"]
["","Omzet vrijdag"]
["","Omzet zaterdag"]
["","Omzet zondag"]
[null,"Weektotaal",{"$f":"SUM(C7:C13)","v":0},{"$f":"SUM(D7:D13)","v":0},{"$f":"SUM(E7:E13)","v":0},{"$f":"SUM(F7:F13)","v":0},{"$f":"SUM(G7:G13)","v":0},null,{"$f":"IF(Licentie,SUM(C14:G14),0)","v":0}]
[]
[null,null,"Pin","Pin","Chip","Eurocard","Visa e.a."]
[{"$f":"A7","v":""},"Maandag"]
[{"$f":"A8","v":""},"Dinsdag"]
["","Woensdag"]
["","Donderdag"]
["","Vrijdag"]
["","Zaterdag"]
["","Zondag"]
[null,"Weektotaal",{"$f":"SUM(C17:C23)","v":0},{"$f":"SUM(D17:D23)","v":0},{"$f":"SUM(E17:E23)","v":0},{"$f":"SUM(F17:F23)","v":0},{"$f":"SUM(G17:G23)","v":0},{"$f":"IF(Licentie,SUM(C24:G24),0)","v":0}]
[]
[null,"Kadobonnen ingewisseld","( aangeslagen op kassa, goederen verlaten winkel)"]
[null,"Kadobonnen verkocht","(wordt niet aangeslagen op kassa)"]
[]
[null,"Bankstorting ","contant geld"]
[null,"Bankstorting ","contant geld"]
[null,"Bankstorting ","contant geld"]
[null,"Van bank opgenomen"]
[]
[null,"Overige uitgaven:","Omschrijving:","Aan wie:","Bedrag:"]
[]
[]
[]
[]
[]
[]
[]
[]
[]
[]
[]
[]
[]
[null,"Prive opname"]
[null,"Totaal uitgaven",null,null,{"$f":"SUM(E35:E48)","v":0},null,null,{"$f":"SUM(E49)","v":0}]
[]
[null,null,null,null,null,null,"kasverschillen"]
[]
[null,"Geteld kasgeld hier vermelden:",null,null,null,null,"Tellingen",{"$f":"IF(Licentie,SUM(H5:H52),0)","v":0},{"$f":"IF(Licentie,SUM(I5:I52),0)","v":0}]
[]
[]
[null,null,null,null,null,"Kassaldo","einde week:",null,{"$f":"SUM(I53-H53)","v":0}]
[]
[null,"Bijzonderheden:"]

{"sheet":"51","index":50,"n_rows":58,"n_cols":9,"rows_kept":58,"cut":false,"hidden":false,"merged":[]}
[null,{"$f":"KbTxt","v":"Kasboek"},"Weeknr: ",51,"Jaar :  ",{"$f":"jaar","v":0},"Winkel :",{"$f":"naam","v":0}]
[]
["Datum:","Omschrijving",null,null,null,null,null,"Uitgaven","Inkomsten"]
[]
[null,null,null,null,"Verkopen","Overige","Omschrij-","Beginsaldo",{"$f":"IF(Licentie,INDIRECT(\"'\"&D1-1&\"'!I56\"),0)","v":0}]
[null,null,"Kassa 1","Kassa 2","op rekening","inkomsten","ving"]
[{"$f":"IF(jr,\"\",INDIRECT(\"'\"&D1-1&\"'!A13\")+1)","v":""},"Omzet maandag"]
[{"$f":"IF(jr,\"\",A7+1)","v":""},"Omzet dinsdag"]
["","Omzet woensdag"]
["","Omzet donderdag"]
["","Omzet vrijdag"]
["","Omzet zaterdag"]
["","Omzet zondag"]
[null,"Weektotaal",{"$f":"SUM(C7:C13)","v":0},{"$f":"SUM(D7:D13)","v":0},{"$f":"SUM(E7:E13)","v":0},{"$f":"SUM(F7:F13)","v":0},{"$f":"SUM(G7:G13)","v":0},null,{"$f":"IF(Licentie,SUM(C14:G14),0)","v":0}]
[]
[null,null,"Pin","Pin","Chip","Eurocard","Visa e.a."]
[{"$f":"A7","v":""},"Maandag"]
[{"$f":"A8","v":""},"Dinsdag"]
["","Woensdag"]
["","Donderdag"]
["","Vrijdag"]
["","Zaterdag"]
["","Zondag"]
[null,"Weektotaal",{"$f":"SUM(C17:C23)","v":0},{"$f":"SUM(D17:D23)","v":0},{"$f":"SUM(E17:E23)","v":0},{"$f":"SUM(F17:F23)","v":0},{"$f":"SUM(G17:G23)","v":0},{"$f":"IF(Licentie,SUM(C24:G24),0)","v":0}]
[]
[null,"Kadobonnen ingewisseld","( aangeslagen op kassa, goederen verlaten winkel)"]
[null,"Kadobonnen verkocht","(wordt niet aangeslagen op kassa)"]
[]
[null,"Bankstorting ","contant geld"]
[null,"Bankstorting ","contant geld"]
[null,"Bankstorting ","contant geld"]
[null,"Van bank opgenomen"]
[]
[null,"Overige uitgaven:","Omschrijving:","Aan wie:","Bedrag:"]
[]
[]
[]
[]
[]
[]
[]
[]
[]
[]
[]
[]
[]
[null,"Prive opname"]
[null,"Totaal uitgaven",null,null,{"$f":"SUM(E35:E48)","v":0},null,null,{"$f":"SUM(E49)","v":0}]
[]
[null,null,null,null,null,null,"kasverschillen"]
[]
[null,"Geteld kasgeld hier vermelden:",null,null,null,null,"Tellingen",{"$f":"IF(Licentie,SUM(H5:H52),0)","v":0},{"$f":"IF(Licentie,SUM(I5:I52),0)","v":0}]
[]
[]
[null,null,null,null,null,"Kassaldo","einde week:",null,{"$f":"SUM(I53-H53)","v":0}]
[]
[null,"Bijzonderheden:"]

{"sheet":"52","index":51,"n_rows":58,"n_cols":9,"rows_kept":58,"cut":false,"hidden":false,"merged":[]}
[null,{"$f":"KbTxt","v":"Kasboek"},"Weeknr: ",52,"Jaar :  ",{"$f":"jaar","v":0},"Winkel :",{"$f":"naam","v":0}]
[]
["Datum:","Omschrijving",null,null,null,null,null,"Uitgaven","Inkomsten"]
[]
[null,null,null,null,"Verkopen","Overige","Omschrij-","Beginsaldo",{"$f":"IF(Licentie,INDIRECT(\"'\"&D1-1&\"'!I56\"),0)","v":0}]
[null,null,"Kassa 1","Kassa 2","op rekening","inkomsten","ving"]
[{"$f":"IF(jr,\"\",INDIRECT(\"'\"&D1-1&\"'!A13\")+1)","v":""},"Omzet maandag"]
[{"$f":"IF(jr,\"\",A7+1)","v":""},"Omzet dinsdag"]
["","Omzet woensdag"]
["","Omzet donderdag"]
["","Omzet vrijdag"]
["","Omzet zaterdag"]
["","Omzet zondag"]
[null,"Weektotaal",{"$f":"SUM(C7:C13)","v":0},{"$f":"SUM(D7:D13)","v":0},{"$f":"SUM(E7:E13)","v":0},{"$f":"SUM(F7:F13)","v":0},{"$f":"SUM(G7:G13)","v":0},null,{"$f":"IF(Licentie,SUM(C14:G14),0)","v":0}]
[]
[null,null,"Pin","Pin","Chip","Eurocard","Visa e.a."]
[{"$f":"A7","v":""},"Maandag"]
[{"$f":"A8","v":""},"Dinsdag"]
["","Woensdag"]
["","Donderdag"]
["","Vrijdag"]
["","Zaterdag"]
["","Zondag"]
[null,"Weektotaal",{"$f":"SUM(C17:C23)","v":0},{"$f":"SUM(D17:D23)","v":0},{"$f":"SUM(E17:E23)","v":0},{"$f":"SUM(F17:F23)","v":0},{"$f":"SUM(G17:G23)","v":0},{"$f":"IF(Licentie,SUM(C24:G24),0)","v":0}]
[]
[null,"Kadobonnen ingewisseld","( aangeslagen op kassa, goederen verlaten winkel)"]
[null,"Kadobonnen verkocht","(wordt niet aangeslagen op kassa)"]
[]
[null,"Bankstorting ","contant geld"]
[null,"Bankstorting ","contant geld"]
[null,"Bankstorting ","contant geld"]
[null,"Van bank opgenomen"]
[]
[null,"Overige uitgaven:","Omschrijving:","Aan wie:","Bedrag:"]
[]
[]
[]
[]
[]
[]
[]
[]
[]
[]
[]
[]
[]
[null,"Prive opname"]
[null,"Totaal uitgaven",null,null,{"$f":"SUM(E35:E48)","v":0},null,null,{"$f":"SUM(E49)","v":0}]
[]
[null,null,null,null,null,null,"kasverschillen"]
[]
[null,"Geteld kasgeld hier vermelden:",null,null,null,null,"Tellingen",{"$f":"IF(Licentie,SUM(H5:H52),0)","v":0},{"$f":"IF(Licentie,SUM(I5:I52),0)","v":0}]
[]
[]
[null,null,null,null,null,"Kassaldo","einde week:",null,{"$f":"SUM(I53-H53)","v":0}]
[]
[null,"Bijzonderheden:"]

{"sheet":"53","index":52,"n_rows":58,"n_cols":9,"rows_kept":58,"cut":false,"hidden":false,"merged":[]}
[null,{"$f":"KbTxt","v":"Kasboek"},"Weeknr: ",53,"Jaar :  ",{"$f":"jaar","v":0},"Winkel :",{"$f":"naam","v":0}]
[]
["Datum:","Omschrijving",null,null,null,null,null,"Uitgaven","Inkomsten"]
[null,null,{"$f":"IF(Week53,\"\",\"Let op! Deze week is eigenlijk week 1. Alleen de dagen in \"&jaar&\" invullen!\")","v":{"$error":"#VALUE!"}}]
[null,null,null,null,"Verkopen","Overige","Omschrij-","Beginsaldo",{"$f":"IF(Licentie,INDIRECT(\"'\"&D1-1&\"'!I56\"),0)","v":0}]
[null,null,"Kassa 1","Kassa 2","op rekening","inkomsten","ving"]
[{"$f":"IF(jr,\"\",INDIRECT(\"'\"&D1-1&\"'!A13\")+1)","v":""},"Omzet maandag"]
[{"$f":"IF(jr,\"\",A7+1)","v":""},"Omzet dinsdag"]
["","Omzet woensdag"]
["","Omzet donderdag"]
["","Omzet vrijdag"]
["","Omzet zaterdag"]
["","Omzet zondag"]
[null,"Weektotaal",{"$f":"SUM(C7:C13)","v":0},{"$f":"SUM(D7:D13)","v":0},{"$f":"SUM(E7:E13)","v":0},{"$f":"SUM(F7:F13)","v":0},null,null,{"$f":"IF(Licentie,SUM(C14:G14),0)","v":0}]
[]
[null,null,"Pin","Pin","Chip","Eurocard","Visa e.a."]
[{"$f":"A7","v":""},"Maandag"]
[{"$f":"A8","v":""},"Dinsdag"]
["","Woensdag"]
["","Donderdag"]
["","Vrijdag"]
["","Zaterdag"]
["","Zondag"]
[null,"Weektotaal",{"$f":"SUM(C17:C23)","v":0},{"$f":"SUM(D17:D23)","v":0},{"$f":"SUM(E17:E23)","v":0},{"$f":"SUM(F17:F23)","v":0},{"$f":"SUM(G17:G23)","v":0},{"$f":"IF(Licentie,SUM(C24:G24),0)","v":0}]
[]
[null,"Kadobonnen ingewisseld","( aangeslagen op kassa, goederen verlaten winkel)"]
[null,"Kadobonnen verkocht","(wordt niet aangeslagen op kassa)"]
[]
[null,"Bankstorting ","contant geld"]
[null,"Bankstorting ","contant geld"]
[null,"Bankstorting ","contant geld"]
[null,"Van bank opgenomen"]
[]
[null,"Overige uitgaven:","Omschrijving:","Aan wie:","Bedrag:"]
[]
[]
[]
[]
[]
[]
[]
[]
[]
[]
[]
[]
[]
[null,"Prive opname"]
[null,"Totaal uitgaven",null,null,{"$f":"SUM(E35:E48)","v":0},null,null,{"$f":"SUM(E49)","v":0}]
[]
[null,null,null,null,null,null,"kasverschillen"]
[]
[null,"Geteld kasgeld hier vermelden:",null,null,null,null,"Tellingen",{"$f":"IF(Licentie,SUM(H5:H52),0)","v":0},{"$f":"IF(Licentie,SUM(I5:I52),0)","v":0}]
[]
[]
[null,null,null,null,null,"Kassaldo","einde week:",null,{"$f":"SUM(I53-H53)","v":0}]
[]
[null,"Bijzonderheden:"]